Workbook

Sheet Menu
B2: Hulpmaterialentool dakelementen
B3: Met behulp van deze tool kunt u bij eenvoudige zadel- of lessenaarsdaken bepalen welke
B4: en hoeveel bevestigers en profielen u nodig heeft bij de verwerking van de diverse types
B5: dakelementen
B6: Bij complexere dakconstructies geven wij u graag een projectspecifiek advies.
B7: Stuur hiervoor uw projectgegevens naar info@isobouw.nl
B9: Maak een productkeuze

Sheet SlimFix
B2: Hulpmaterialentool SlimFix dakelementen
B4: Met behulp van deze tool kunt u bij eenvoudige zadel- of lessenaarsdaken bepalen welke en hoeveel
B5: bevestigers en profielen u nodig heeft bij de verwerking van de diverse types SlimFix dakelementen
B6: Bij complexere dakconstructies geven wij u graag een projectspecifiek advies.
B7: Stuur hiervoor uw projectgegevens naar info@isobouw.nl
B9: Product
J10: Opnieuw selecteren bij typeverandering
B11: Type dakelement | D11: _Type | H11: RC-waarde
D12: Voor Solar-elementen verwijzen wij naar de verwerkingsvoorschriften op onze site
B14: Projectnaam (optioneel)
B16: Dakconstructie
J20: d | K20: dd
B28: Dakvlak 1: Alle velden invullen m.u.v.'gewicht PV-panelen' Dat veld is optioneel.
B30: Gebouwtype | D30: 1,2 of 3 bouwlagen (ééngezinswoning)
B32: Breedte in mm | G32: Lengte in mm
B35: Aantal oplegpunten
B41: Gewicht pannen in kg/m2 | G41: PV-panelen + plafond in kg/m2 | K41: (optioneel)
G43: Totaal aantal gelijksoortige | J43: Minimaal 1 invullen
B44: Dakhelling in graden | G44: dakvlakken | J44: 1
B46: Dakvlak 2 (indien van toepassing): Alle velden invullen m.u.v.'gewicht PV-panelen' Dat veld is optioneel.
B48: Gebouwtype | D48: 1,2 of 3 bouwlagen (ééngezinswoning)
B50: Breedte in mm | G50: Lengte in mm
B52: Aantal oplegpunten
B54: Gewicht pannen in kg/m2 | G54: PV-panelen + plafond in kg/m2 | K54: (optioneel)
G56: Totaal aantal gelijksoortige | J56: Minimaal 1 invullen (indien van toepassing)
B57: Dakhelling in graden | G57: dakvlakken | J57: 1
B59: Bevestigingsmethode
B61: Dakvlak 1: | F61: Bevestigers | I61: Aantal
B62: =VLOOKUP(calcu!$C$10,' lijst slimfix'!C6:AA96,23) ->  | F62: =VLOOKUP(calcu!$C$10,' lijst slimfix'!C6:X96,4) ->  | H62: =IF($B$62="Door de tengel t.p.v. elke onderliggende gording/muurplaat:"," ","incl. volgplaatjes") ->  | I62: =IF($D$32=0,0,VLOOKUP(calcu!$C$10,' lijst slimfix'!C6:AA96,24)) -> 0 | J62: per oplegging
B63: =VLOOKUP(calcu!$C$10,' lijst slimfix'!C6:AA96,25) ->  | F63: =IF($B$63=" ","",VLOOKUP(calcu!$C$10,' lijst slimfix'!C6:X96,9)) ->  | H63: =IF($B$63=" "," ","incl. volgplaatjes") ->  | I63: =IF($B$63=" "," ",VLOOKUP(calcu!$C$10,' lijst slimfix'!C6:X96,12)) ->  | J63: =IF($B$63=" "," ","per element") -> 
B65: =IF($D$50=0," ","Dakvlak 2") -> 
B66: =IF($D$50=0," ",VLOOKUP(calcu!$C$10,' lijst slimfix'!C6:AA96,23)) ->  | F66: =IF($D$50=0," ",VLOOKUP(calcu!$C$10,' lijst slimfix'!C6:X96,4)) ->  | H66: =IF(OR($B$66="Door de tengel t.p.v. elke onderliggende gording/muurplaat:",$B$66=" ")," ","incl. volgplaatjes") ->  | I66: =IF($D$50=0," ",VLOOKUP(calcu!$C$10,' lijst slimfix'!C6:AA96,24)) ->  | J66: =IF($D$50=0," ","per oplegging") -> 
B67: =IF($D$50=0," ",VLOOKUP(calcu!$C$10,' lijst slimfix'!C6:AA96,25)) ->  | F67: =IF($B$67=" "," ",VLOOKUP(calcu!$C$10,' lijst slimfix'!C6:X96,9)) ->  | H67: =IF($B$67=" "," ","incl. volgplaatjes") ->  | I67: =IF($B$67=" "," ",VLOOKUP(calcu!$C$10,' lijst slimfix'!C6:X96,13)) ->  | J67: =IF($B$67=" "," ","per element") -> 
B69: Totale hoeveelheid benodigde bevestigers en hulpmaterialen
B71: Product | D71: Eenheid | G71: Aantal
B72: =VLOOKUP(calcu!$C$10,' lijst slimfix'!C6:V96,16) ->  | D72: =IF(B72=0," ",VLOOKUP(calcu!$C$10,' lijst slimfix'!C6:V96,5)) ->  | E72: =IF(B72=0," ","st/ds") ->  | G72: =IF(B72=0," ",VLOOKUP(calcu!$C$10,' lijst slimfix'!C6:V96,17)) ->  | H72: =IF(B72=0," ","ds") -> 
B73: =VLOOKUP(calcu!$C$10,' lijst slimfix'!C6:V96,18) ->  | D73: =IF(B73=0," ",VLOOKUP(calcu!$C$10,' lijst slimfix'!C6:V96,10)) ->  | E73: =IF(B73=0," ","st/ds") ->  | G73: =IF(B73=0," ",VLOOKUP(calcu!$C$10,' lijst slimfix'!C6:V96,19)) ->  | H73: =IF(B73=0," ","ds") -> 
B74: =IF(G74=0," ","Volgplaatjes") ->  | D74: =IF(G74=0," ",100) ->  | E74: =IF(G74=0," ","st/ds") ->  | G74: =VLOOKUP(calcu!$C$10,' lijst slimfix'!C6:X96,20) ->  | H74: =IF(G74=0," ","ds") -> 
B75: =VLOOKUP(calcu!$C$10,' lijst slimfix'!C6:X96,21) ->  | G75: =VLOOKUP(calcu!$C$10,' lijst slimfix'!C6:X96,22) ->  | H75: m1
B77: Aan de uitkomsten van de berekeningen kunnen geen rechten worden ontleend
B78: Bij de berekeningen is geen rekening gehouden met de toepassing van stuiknaden en/of elementen met kopgeveloverstekvoorziening

Sheet SlimFix Reno+
B2: Hulpmaterialentool SlimFix Reno+ elementen
B4: Met behulp van deze tool kunt u bij eenvoudige zadel- of lessenaarsdaken bepalen welke en hoeveel
B5: bevestigers en profielen (optioneel) u nodig heeft bij de verwerking van de SlimFix Reno+ elementen
B6: Bij complexere dakconstructies geven wij u graag een projectspecifiek advies.
B7: Stuur hiervoor uw projectgegevens naar info@isobouw.nl
B9: Product
B11: Type dakelement | D11: SlimFix Reno+ | H11: RC-waarde
B13: Projectnaam (optioneel)
B15: Dakconstructie
J19: d | K19: dd
B27: Dakvlak 1: Alle velden invullen.
B29: Breedte in mm | G29: Lengte in mm
B32: Aantal oplegpunten/gordingen
B35: Totaal aantal gelijksoortige | D35: Minimaal 1 invullen
B36: dakvlakken | D36: 1
B38: Dakvlak 2 (indien van toepassing): Alle velden invullen.
B40: Breedte in mm | G40: Lengte in mm
B42: Aantal oplegpunten/gordingen
B44: Totaal aantal gelijksoortige | D44: Minimaal 1 invullen (indien van toepassing)
B45: dakvlakken | D45: 1
B47: Bevestigingsmethode
B49: Dakvlak 1: | F49: Bevestigers | I49: Aantal
B50: Door de tengel t.p.v. elke onderliggende gording | F50: =VLOOKUP('lijst reno'!M5,'lijst reno'!C5:F13,4) ->  | I50: 3 | J50: per oplegging
B52: =IF($D$40=0," ","Dakvlak 2") -> 
B53: =IF($D$40=0," ","Door de tengel t.p.v. elke onderliggende gording") ->  | F53: =IF($D$40=0," ",VLOOKUP('lijst reno'!M5,'lijst reno'!C5:F13,7)) ->  | I53: =IF($D$40=0," ",3) ->  | J53: =IF($D$40=0," ","per oplegging") -> 
B55: Totale hoeveelheid benodigde bevestigers en hulpmaterialen
B57: Product | D57: Eenheid | G57: Aantal
B58: Schroef | C58: =F50 ->  | D58: 100 st./ds | G58: =CEILING('lijst reno'!I5/100,1) -> 0 | H58: =IF(C58=0," ","ds") -> 
B60: Optioneel:
B61: SlimFix Reno naadprofiel 3 m | D61: 8 st./bundel | G61: =CEILING(((J29/1000)*'lijst reno'!G5)+((J40/1000)*'lijst reno'!H5),1) -> 0 | H61: m1 oftewel | I61: =CEILING(G61/8,1) -> 0 | J61: bundel
B63: =VLOOKUP('lijst reno'!M5,'lijst reno'!C5:K13,8) ->  | D63: =IF(B63=0," ","6 st./doos*") ->  | G63: =IF(B63=0," ",CEILING(((D29*D36)+(D40*D45))/11700,1)) ->  | H63: =IF(B63=0," ","ds") -> 
B64: =VLOOKUP('lijst reno'!M5,'lijst reno'!C5:K13,9) ->  | D64: =IF(B64=0," ","4 st./doos**") ->  | G64: =IF(B64=0," ","aantal/toepassing afhankelijk van project") -> 
B65: Aan de uitkomsten van de berekeningen kunnen geen rechten worden ontleend
B67: =IF(B63=0," ",'lijst reno'!A15) -> 

Sheet SlimFix RenoTwin
B2: Hulpmaterialentool SlimFix RenoTwin elementen
B4: Met behulp van deze tool kunt u bij eenvoudige zadel- of lessenaarsdaken bepalen welke en hoeveel
B5: bevestigers en profielen (optioneel) u nodig heeft bij de verwerking van de SlimFix RenoTwin elementen
B6: Bij complexere dakconstructies geven wij u graag een projectspecifiek advies.
B7: Stuur hiervoor uw projectgegevens naar info@isobouw.nl
B9: Product
B11: Type dakelement | D11: SlimFix RenoTwin | H11: Type*
D12: * De Rc-waarde is mede afhankelijk van de onderconstructie (eventuele aanwezigheid oude isolatielaag)
D13: Voor Solar-elementen verwijzen wij naar de verwerkingsvoorschriften op onze site
B15: Projectnaam (optioneel)
B17: Dakconstructie
J21: d | K21: dd
B29: Dakvlak 1: Alle velden invullen.
B31: Breedte in mm | G31: Lengte in mm
B34: Aantal oplegpunten/gordingen
B39: Uit te vlakken doorbuiging in mm | D39: _kies
G40: Totaal aantal gelijksoortige | J40: Minimaal 1 invullen
B41: Dikte bestaand dakpakket in mm | D41: _kies | G41: dakvlakken | J41: 1
B43: Is er sprake van een gootoverstek | D43: _kies
B46: Dakvlak 2 (indien van toepassing): Alle velden invullen.
B48: Breedte in mm | G48: Lengte in mm
B50: Aantal oplegpunten/gordingen
B52: Uit te vlakken doorbuiging in mm | D52: _kies
G53: Totaal aantal gelijksoortige | J53: Minimaal 1 invullen (indien van toepassing)
B54: Dikte bestaand dakpakket in mm | D54: _kies | G54: dakvlakken | J54: 1
B56: Is er sprake van een gootoverstek | D56: _kies
B58: Bevestigingsmethode
B60: Dakvlak 1: | F60: Bevestigers | I60: Aantal
B61: Door de tengel t.p.v. elke onderliggende gording | F61: =IF(D39="_kies","?? ",VLOOKUP(('lijst renotwin'!N5&D39&D41),'lijst renotwin'!B27:E176,4)) -> ?? | G61: RenoTwin schroef | I61: 3 | J61: per oplegging
B63: =IF(D43="ja","T.b.v. gootoverstek:"," ") -> 
B64: =IF(D43="ja","67° bevestiging door de tengel t.p.v. de muurplaat "," ") ->  | F64: =IF(D43="ja",VLOOKUP('lijst renotwin'!N5,'lijst renotwin'!C5:L15,10)," ") ->  | G64: =IF(D43="ja","RenoTwin schroef"," ") ->  | I64: =IF(D43="ja",3," ") ->  | J64: =IF(D43="ja","per element"," ") -> 
G65: =IF(D43="ja",VLOOKUP('lijst renotwin'!N5,'lijst renotwin'!C5:L15,9)," ") ->  | H65: =IF(D43="ja","mm afstand tot horiz. schroef)"," ") -> 
B66: =IF($D$48=0," ","Dakvlak 2") -> 
B67: =IF($D$48=0," ","Door de tengel t.p.v. elke onderliggende gording") ->  | F67: =IF(D48=0," ",L67) ->  | G67: =IF(D48=0," ","RenoTwin schroef") ->  | I67: =IF($D$48=0," ",3) ->  | J67: =IF($D$48=0," ","per oplegging") ->  | L67: =IF(D52="_kies"," ",VLOOKUP(('lijst renotwin'!N5&D52&D54),'lijst renotwin'!B27:E326,4)) -> 
B69: =IF(D56="ja","T.b.v. gootoverstek:"," ") -> 
B70: =IF(D56="ja","67° bevestiging in de muurplaat "," ") ->  | F70: =IF(D56="ja",VLOOKUP('lijst renotwin'!N5,'lijst renotwin'!C5:L15,10)," ") ->  | G70: =IF(D56="ja","RenoTwin schroef"," ") ->  | I70: =IF(D56="ja",3," ") ->  | J70: =IF(D56="ja","per element"," ") -> 
G71: =IF(D56="ja",VLOOKUP('lijst renotwin'!N5,'lijst renotwin'!C5:L15,9)," ") ->  | H71: =IF(D56="ja","mm afstand tot horiz. schroef)"," ") -> 
B73: Totale hoeveelheid benodigde bevestigers en hulpmaterialen
B75: Product | D75: Eenheid | G75: Aantal
B76: RenoTwin schroef | C76: =F61 -> ?? | D76: =VLOOKUP(C76,'lijst renotwin'!J27:M38,2) ->  | G76: =CEILING('lijst renotwin'!F5/VLOOKUP(C76,'lijst renotwin'!J27:M38,3),1) ->  | H76: =IF(C76=0," ","ds t.b.v. dakvlak 1") -> ds t.b.v. dakvlak 1
B77: =IF(D48=0," ","RenoTwin schroef") ->  | C77: =IF(B77= " "," ",$L$67) ->  | D77: =IF(B77=" "," ",VLOOKUP(C77,'lijst renotwin'!J27:M38,2)) ->  | G77: =IF(B77=" "," ",CEILING('lijst renotwin'!G5/VLOOKUP(C77,'lijst renotwin'!J27:M38,3),1)) ->  | H77: =IF(C77=" "," ","ds t.b.v. dakvlak 2") -> 
B79: =IF(OR(D43="ja",D56="ja"),"T.b.v. gootoverstek"," ") -> 
B80: =IF(C80=" "," ","RenoTwin schroef") ->  | C80: =F64 ->  | D80: =IF(B80=" "," ",VLOOKUP(C80,'lijst renotwin'!J27:M38,2)) ->  | G80: =IF(B80=" "," ",CEILING(('lijst renotwin'!D5+'lijst renotwin'!E5)*3/VLOOKUP(C80,'lijst renotwin'!J27:M38,3),1)) ->  | H80: =IF(C80=" "," ","ds") -> 
B82: Optioneel:
B83: SlimFix Reno naadprofiel 3 m | D83: 8 st./bundel | G83: =CEILING(((J31/1000)*'lijst renotwin'!D5)+((J48/1000)*'lijst renotwin'!E5),1) -> 0 | H83: m1 oftewel | I83: =CEILING(G83/8,1) -> 0 | J83: bundel
B84: Voldraadschroef 6x120 t.b.v. kopgeveloverstek | D84: 100 st./ds | G84: =CEILING(((D31/1000*4*2*J41)+(D48/1000*4*2*J54))/100,1) -> 0 | H84: ds (flexoptie bij een kopgeveloverstekvoorziening,
H85: volume gebas.op toepassing bij iedere boeiboord)
B86: =IF(J11>=5,"Schroefhulp"," ") ->  | G86: =IF(B86=" "," ",1) ->  | H86: =IF(B86=" "," ","st.") -> 
B88: =VLOOKUP('lijst renotwin'!N5,'lijst renotwin'!C5:I15,6) ->  | D88: =IF(B88=0," ","6 st./doos*") ->  | G88: =CEILING(((D31*J41)+(D48*J54))/11700,1) -> 0 | H88: =IF(B88=0," ","ds") -> 
B89: =VLOOKUP('lijst renotwin'!N5,'lijst renotwin'!C5:I15,7) ->  | D89: =IF(B89=0," ","4 st./doos**") ->  | G89: aantal/toepassing afhankelijk van project
B90: Aan de uitkomsten van de berekeningen kunnen geen rechten worden ontleend
B92: =IF(B88=0," ",'lijst reno'!A15) -> 

Sheet calcu (hidden)
A2: Dakvlak 1 | M2: Dakvlak 2 | X2: Rapport SHR 2023 | Y2: rekenwaarden afschuifsterkte
X3: rapp.code: 22.0675 | Y3: FV,Rd,blijvend [kN] | AA3: FV,Rd,kort [kN]
X4: 2023-08-10 | Y4: schroef Ø 6 | Z4: schroef Ø 8 | AA4: schroef Ø 6 | AB4: schroef Ø 8
B5: SNEEUW: | D5: NEN-EN 1991-1-3+C1:2011/NB:2011 | N5: SNEEUW: | P5: NEN-EN 1991-1-3+C1:2011/NB:2011 | X5: 3 mm sp.pl. | Y5: 0.36 | Z5: 0.51 | AA5: 0.75 | AB5: 1.04
A6: Daktype: | B6: Zadel / lessenaarsdak (sneeuw wordt NIET belet van dak te glijden";"sneeuw wordt belet van dak te glijden) | M6: Daktype: | N6: Zadel / lessenaarsdak (sneeuw wordt NIET belet van dak te glijden";"sneeuw wordt belet van dak te glijden) | X6: 8 mm sp.pl. | Y6: 0.85 | Z6: 1.07 | AA6: 1.75 | AB6: 2.2
B7: μ1 = | C7: =IF(AND(C11>=0,C11<=30),0.8,IF(AND(C11>30,C11<60),(60-C11)/30*0.8,IF(AND(C11>=60,C11<=90),0,IF(C11>90," hoek ???",IF(C11<0," hoek ???"," "))))) -> 0.80 | E7: Ce = | F7: 1 | G7: sk50 = | H7: =0.7*((1-(H8*SQRT(6)/PI()*(LN(-LN(1-1/50))+0.57222)))/(1+2.5923*H8)) -> 0.7 | I7: kN/m2 | N7: μ1 = | O7: =IF(AND(O11>=0,O11<=30),0.8,IF(AND(O11>30,O11<60),(60-O11)/30*0.8,IF(AND(O11>=60,O11<=90),0,IF(O11>90," hoek ???",IF(O11<0," hoek ???"," "))))) -> 0.80 | Q7: Ce = | R7: 1 | S7: sk50 = | T7: =0.7*((1-(T8*SQRT(6)/PI()*(LN(-LN(1-1/50))+0.57222)))/(1+2.5923*T8)) -> 0.7 | U7: kN/m2 | X7: 3 mm sp.pl + XT rib | Y7: 1.15 | AA7: 1.72
B8: s = μi Ce Ct sk = | C8: =C7*F7*F8*H7 -> 0.56 | D8: kN/m2 | E8: Ct = | F8: 1 | G8: V = | H8: 0.8 | N8: s = μi Ce Ct sk = | O8: =O7*R7*R8*T7 -> 0.56 | P8: kN/m2 | Q8: Ct = | R8: 1 | S8: V = | T8: 0.8 | X8: 8 mm sp.pl + XT rib | Y8: 1.34 | AA8: 2.01
F9: NEN-EN 1995-1-1:2005/NB:2011 art.2.3.1.2 | R9: NEN-EN 1995-1-1:2005/NB:2011 art.2.3.1.2
B10: element : | C10: =SlimFix!D11&" "&SlimFix!J11 -> _Type | F10: Belastingsduurklasse | J10: Belastingsvoorbeelden | N10: element : | O10: =SlimFix!D11&" "&SlimFix!J11 -> _Type | R10: Belastingsduurklasse | V10: Belastingsvoorbeelden | X10: NEN-EN 1995-1-1:2005/NB:2011 art.2.3.1.2
B11: dakhelling α = | C11: =SlimFix!D44 -> 0 | F11: blijvend | J11: eigen gewicht | N11: dakhelling α = | O11: =SlimFix!$D$57 -> 0 | R11: blijvend | V11: eigen gewicht | X11: Belastingsduurklasse | AB11: Belastingsvoorbeelden
F12: Kort | J12: Sneeuw, wind | R12: Kort | V12: Sneeuw, wind | X12: blijvend | AB12: eigen gewicht
X13: Kort | AB13: Sneeuw, wind
B14: eigen gewicht | C14: =VLOOKUP(C10,' lijst slimfix'!C6:E96,3) ->  | D14: kN/m2 | F14: =SlimFix!D30 -> 1,2 of 3 bouwlagen (ééngezinswoning) | N14: eigen gewicht | O14: =VLOOKUP(C10,' lijst slimfix'!C6:E96,3) ->  | P14: kN/m2 | R14: =SlimFix!D48 -> 1,2 of 3 bouwlagen (ééngezinswoning)
B15: pannen | C15: =SlimFix!D41 -> 0 | D15: kg/m2 | E15: evenwijdig | N15: pannen | O15: =SlimFix!$D$54 -> 0 | P15: kg/m2 | Q15: evenwijdig
B16: PV opdak | C16: =SlimFix!J41 -> 0 | D16: kg/m2 | E16: aan dakvl. | I16: F | N16: PV opdak | O16: =SlimFix!$J$54 -> 0 | P16: kg/m2 | Q16: aan dakvl. | U16: F
B17: tot perm. | C17: =SUM(C14:C16)/100 ->  | D17: kN/m2 = | E17: =C17*SIN(C11/180*PI())*E19*0.981 ->  | F17: kN/m1 x | G17: =E20 -> 0 | H17: = | I17: =E17*G17 ->  | J17: kN | N17: tot perm. | O17: =SUM(O14:O16)/100 ->  | P17: kN/m2 = | Q17: =O17*SIN(O11/180*PI())*Q19*0.981 ->  | R17: kN/m1 x | S17: =Q20 -> 0 | T17: = | U17: =Q17*S17 ->  | V17: kN
B18: tot sneeuw | C18: =C8 -> 0.56 | D18: kN/m2 = | E18: =C18*COS(C11/180*PI())*SIN(C11/180*PI())*E19*0.981 -> 0.00 | F18: kN/m1 x | G18: =E20 -> 0 | H18: = | I18: =E18*G18 -> 0.00 | J18: kN | N18: tot sneeuw | O18: =O8 -> 0.56 | P18: kN/m2 = | Q18: =O18*COS(O11/180*PI())*SIN(O11/180*PI())*Q19*0.981 -> 0.00 | R18: kN/m1 x | S18: =Q20 -> 0 | T18: = | U18: =Q18*S18 -> 0.00 | V18: kN
D19: elementbreedte = | E19: 1.02 | F19: m | P19: elementbreedte = | Q19: 1.02 | R19: m
D20: Daklengte = | E20: =SlimFix!J32/1000 -> 0 | F20: m | P20: Daklengte = | Q20: =SlimFix!J50/1000 -> 0 | R20: m
D22: veiligheids | F22: veiligheids | P22: veiligheids | R22: veiligheids
B23: Korte duur: | D23: factor γ | E23: F | F23: factor γ | G23: F | N23: Korte duur: | P23: factor γ | Q23: F | R23: factor γ | S23: F
A24: (6.10a) | C24: Ned,kort = | D24: =IF(F14="Meer dan 3 bouwlagen (appartement, openbaar gebouw)",1.35,1.2) -> 1.2 | E24: =I17 ->  | H24: = | I24: =D24*E24 ->  | J24: =IF(I24>=I25,"kN = max","kN") ->  | M24: (6.10a) | O24: Ned,kort = | P24: =IF(R14="Meer dan 3 bouwlagen (appartement, openbaar gebouw)",1.35,1.2) -> 1.2 | Q24: =U17 ->  | T24: = | U24: =P24*Q24 ->  | V24: =IF(U24>=U25,"kN = max","kN") -> 
A25: (6.10b) | C25: Ned,kort = | D25: =IF(F14="Meer dan 3 bouwlagen (appartement, openbaar gebouw)",1.2,1.08) -> 1.08 | E25: =I17 ->  | F25: =IF(F14="Meer dan 3 bouwlagen (appartement, openbaar gebouw)",1.5,1.35) -> 1.35 | G25: =I18 -> 0.00 | H25: = | I25: =D25*E25+F25*G25 ->  | J25: =IF(I25>=I24,"kN = max","kN") ->  | M25: (6.10b) | O25: Ned,kort = | P25: =IF(R14="Meer dan 3 bouwlagen (appartement, openbaar gebouw)",1.2,1.08) -> 1.08 | Q25: =U17 ->  | R25: =IF(R14="Meer dan 3 bouwlagen (appartement, openbaar gebouw)",1.5,1.35) -> 1.35 | S25: =U18 -> 0.00 | T25: = | U25: =P25*Q25+R25*S25 ->  | V25: =IF(U25>=U24,"kN = max","kN") -> 
B26: Blijvend: | N26: Blijvend:
A27: (6.10a) | C27: Ned,blijvend = | D27: =IF(F14="Meer dan 3 bouwlagen (appartement, openbaar gebouw)",1.35,1.2) -> 1.2 | E27: =I17 ->  | H27: = | I27: =D27*E27 ->  | J27: =IF(I27>=I28,"kN = max","kN") ->  | M27: (6.10a) | O27: Ned,blijvend = | P27: =IF(R14="Meer dan 3 bouwlagen (appartement, openbaar gebouw)",1.35,1.2) -> 1.2 | Q27: =U17 ->  | T27: = | U27: =P27*Q27 ->  | V27: =IF(U27>=U28,"kN = max","kN") -> 
A28: (6.10b) | C28: Ned,blijvend = | D28: =IF(F14="Meer dan 3 bouwlagen (appartement, openbaar gebouw)",1.2,1.08) -> 1.08 | E28: =I17 ->  | H28: = | I28: =D28*E28 ->  | J28: =IF(I28>=I27,"kN = max","kN") ->  | M28: (6.10b) | O28: Ned,blijvend = | P28: =IF(R14="Meer dan 3 bouwlagen (appartement, openbaar gebouw)",1.2,1.08) -> 1.08 | Q28: =U17 ->  | T28: = | U28: =P28*Q28 ->  | V28: =IF(U28>=U27,"kN = max","kN") -> 
E30: SHR 2023 getest | H30: opgen door 3 ø 6 | I30: daarnaast | Q30: SHR 2023 getest | T30: opgen door 3 ø 6 | U30: daarnaast
B31: spaanplaat = | C31: =VLOOKUP(C10,' lijst slimfix'!C6:D96,2) ->  | D31: mm | E31: kort | F31: blijvend | G31: kort | H31: blijvend | I31: nog nodig | N31: spaanplaat = | O31: =VLOOKUP(C10,' lijst slimfix'!C6:D96,2) ->  | P31: mm | Q31: kort | R31: blijvend | S31: kort | T31: blijvend | U31: nog nodig
A32: opneembaar door schroef ø 6 in 3mm plaat | E32: =$AA$5*1000 -> 750 | F32: =$Y$5*1000 -> 360 | G32: =3*$E$32 -> 2250 | H32: =$F$32*3 -> 1080 | I32: =CEILING(MAX((MAX(I24:I25)-G32/1000)/(E32/1000),(MAX(I27:I28)-H32/1000)/(F32/1000)),1) ->  | J32: sts ø 6 | M32: opneembaar door schroef ø 6 in 3mm plaat | Q32: =$AA$5*1000 -> 750 | R32: =$Y$5*1000 -> 360 | S32: =3*$E$32 -> 2250 | T32: =$F$32*3 -> 1080 | U32: =CEILING(MAX((MAX(U24:U25)-S32/1000)/(Q32/1000),(MAX(U27:U28)-T32/1000)/(R32/1000)),1) ->  | V32: sts ø 6
A33: opneembaar door schroef ø 8 in 3mm plaat | E33: =$AB$5*1000 -> 1040 | F33: =$Z$5*1000 -> 510 | G33: =3*$E$32 -> 2250 | H33: =$F$32*3 -> 1080 | I33: =CEILING(MAX((MAX(I24:I25)-G33/1000)/(E33/1000),(MAX(I27:I28)-H33/1000)/(F33/1000)),1) ->  | J33: sts ø 8 | M33: opneembaar door schroef ø 8 in 3mm plaat | Q33: =$AB$5*1000 -> 1040 | R33: =$Z$5*1000 -> 510 | S33: =3*$E$32 -> 2250 | T33: =$F$32*3 -> 1080 | U33: =CEILING(MAX((MAX(U24:U25)-S33/1000)/(Q33/1000),(MAX(U27:U28)-T33/1000)/(R33/1000)),1) ->  | V33: sts ø 8
A34: opneembaar door schroef ø 6 in 8mm plaat | E34: =$AA$6*1000 -> 1750 | F34: =$Y$6*1000 -> 850 | G34: =3*$E$34 -> 5250 | H34: =$F$34*3 -> 2550 | I34: =CEILING(MAX((MAX(I24:I25)-G34/1000)/(E34/1000),(MAX(I27:I28)-H34/1000)/(F34/1000)),1) ->  | J34: sts ø 6 | M34: opneembaar door schroef ø 6 in 8mm plaat | Q34: =$AA$6*1000 -> 1750 | R34: =$Y$6*1000 -> 850 | S34: =3*$E$34 -> 5250 | T34: =$F$34*3 -> 2550 | U34: =CEILING(MAX((MAX(U24:U25)-S34/1000)/(Q34/1000),(MAX(U27:U28)-T34/1000)/(R34/1000)),1) ->  | V34: sts ø 6
A35: opneembaar door schroef ø 8 in 8mm plaat | E35: =$AB$6*1000 -> 2200 | F35: =$Z$6*1000 -> 1070 | G35: =3*$E$34 -> 5250 | H35: =$F$34*3 -> 2550 | I35: =CEILING(MAX((MAX(I24:I25)-G35/1000)/(E35/1000),(MAX(I27:I28)-H35/1000)/(F35/1000)),1) ->  | J35: sts ø 8 | M35: opneembaar door schroef ø 8 in 8mm plaat | Q35: =$AB$6*1000 -> 2200 | R35: =$Z$6*1000 -> 1070 | S35: =3*$E$34 -> 5250 | T35: =$F$34*3 -> 2550 | U35: =CEILING(MAX((MAX(U24:U25)-S35/1000)/(Q35/1000),(MAX(U27:U28)-T35/1000)/(R35/1000)),1) ->  | V35: sts ø 8
A37: SlimFixXT type R | M37: SlimFixXT type R
A38: dakvlak 1 | M38: Dakvlak 2
E40: SHR 2023 getest | H40: opgen door 3 ø 6 (2rib) | I40: daarnaast | Q40: SHR 2023 getest | T40: opgen door 3 ø 6 (2rib) | U40: daarnaast
B41: spaanplaat = | C41: =VLOOKUP(C10,' lijst slimfix'!C6:D96,2) ->  | D41: mm | E41: kort | F41: blijvend | G41: kort | H41: blijvend | I41: nog nodig | N41: spaanplaat = | O41: =VLOOKUP(O10,' lijst slimfix'!C6:D96,2) ->  | P41: mm | Q41: kort | R41: blijvend | S41: kort | T41: blijvend | U41: nog nodig
A42: opneembaar door schroef ø 6 in 3mm plaat | E42: =$AA$5*1000 -> 750 | F42: =$Y$5*1000 -> 360 | G42: =2*$AA$7*1000+$E$42 -> 4190 | H42: =2*$Y$7*1000+$F$42 -> 2660 | I42: =CEILING(MAX((MAX(I24:I25)-G42/1000)/(E42/1000),(MAX(I27:I28)-H42/1000)/(F42/1000)),1) ->  | J42: sts ø 6 | M42: opneembaar door schroef ø 6 in 3mm plaat | Q42: =$AA$5*1000 -> 750 | R42: =$Y$5*1000 -> 360 | S42: =2*$AA$7*1000+$E$42 -> 4190 | T42: =2*$Y$7*1000+$F$42 -> 2660 | U42: =CEILING(MAX((MAX(U24:U25)-S42/1000)/(Q42/1000),(MAX(U27:U28)-T42/1000)/(R42/1000)),1) ->  | V42: sts ø 6
A43: opneembaar door schroef ø 6 in 8mm plaat | E43: =$AA$6*1000 -> 1750 | F43: =$Y$6*1000 -> 850 | G43: =2*$Y$8*1000+$E$43 -> 4430 | H43: =2*$Y$8*1000+$F$43 -> 3530 | I43: =CEILING(MAX((MAX(I24:I25)-G43/1000)/(E43/1000),(MAX(I27:I28)-H43/1000)/(F43/1000)),1) ->  | J43: sts ø 6 | M43: opneembaar door schroef ø 6 in 8mm plaat | Q43: =$AA$6*1000 -> 1750 | R43: =$Y$6*1000 -> 850 | S43: =2*$Y$8*1000+$E$43 -> 4430 | T43: =2*$Y$8*1000+$F$43 -> 3530 | U43: =CEILING(MAX((MAX(U24:U25)-S43/1000)/(Q43/1000),(MAX(U27:U28)-T43/1000)/(R43/1000)),1) ->  | V43: sts ø 6

Sheet lijst RC (hidden)
A1: =SlimFix!$D$11 -> _Type | B1: SlimFix 3/3 | C1: SlimFix 3/3L | D1: SlimFix 8/8 | E1: SlimFix 8/8L | F1: SlimFix Riet | G1: SlimFix Spoor | H1: SlimFix-XT 3/3L | I1: SlimFix-XT 3/3R | J1: SlimFix-XT 8/8L | K1: SlimFix-XT 8/8R | L1: SlimFix-XT Passief | M1: SlimFix-XT Passief M | N1: SlimFix-XT Riet | O1: ATTENTIE: type op alfabetische volgorde
A2: =IF(HLOOKUP($A$1,B1:N10,2)>0,HLOOKUP($A$1,B1:N10,2)," ") ->  | B2: 2.5 | C2: 2.5 | D2: 2.5 | E2: 2.5 | F2: 1.5+4.0 | G2: 2.5 | H2: 2.5 | I2: 2.5 | J2: 2.5 | K2: 2.5 | L2: 9.0 | M2: 8.0 | N2: 2.5+4.0
A3: =IF(HLOOKUP($A$1,$B$1:$N$10,3)>0,HLOOKUP($A$1,$B$1:$N$10,3)," ") ->  | B3: 3.0 | C3: 3.0 | D3: 3.0 | E3: 3.0 | F3: 2.5+4.0 | G3: 3.0 | H3: 3.0 | I3: 3.0 | J3: 3.0 | K3: 3.0 | L3: 10.0 | N3: 3.0+4.0
A4: =IF(HLOOKUP($A$1,$B$1:$N$10,4)>0,HLOOKUP($A$1,$B$1:$N$10,4)," ") ->  | B4: 3.5 | C4: 3.5 | D4: 3.5 | E4: 3.5 | F4: 3.0+4.0 | G4: 3.5 | H4: 3.5 | I4: 3.5 | J4: 3.5 | K4: 3.5 | N4: 3.5+4.0
A5: =IF(HLOOKUP($A$1,$B$1:$N$10,5)>0,HLOOKUP($A$1,$B$1:$N$10,5)," ") ->  | B5: 4.0 | C5: 4.0 | D5: 4.0 | E5: 4.0 | F5: 3.5+4.0 | G5: 4.0 | H5: 4.0 | I5: 4.0 | J5: 4.0 | K5: 4.0 | N5: 4.0+4.0
A6: =IF(HLOOKUP($A$1,$B$1:$N$10,6)>0,HLOOKUP($A$1,$B$1:$N$10,6)," ") ->  | B6: 4.5 | C6: 4.5 | D6: 4.5 | E6: 4.5 | F6: 4.0+4.0 | G6: 4.5 | H6: 4.5 | I6: 4.5 | J6: 4.5 | K6: 4.5 | N6: 4.5+4.0
A7: =IF(HLOOKUP($A$1,$B$1:$N$10,7)>0,HLOOKUP($A$1,$B$1:$N$10,7)," ") ->  | B7: 5.0 | C7: 5.0 | D7: 5.0 | E7: 5.0 | F7: 4.5+4.0 | G7: 5.0 | H7: 5.0 | I7: 5.0 | J7: 5.0 | K7: 5.0 | N7: 5.5+4.0
A8: =IF(HLOOKUP($A$1,$B$1:$N$10,8)>0,HLOOKUP($A$1,$B$1:$N$10,8)," ") ->  | B8: 5.5 | C8: 5.5 | D8: 5.5 | E8: 5.5 | F8: 5.5+4.0 | G8: 5.5 | H8: 5.5 | I8: 5.5 | J8: 5.5 | K8: 5.5 | N8: 6.3+4.0
A9: =IF(HLOOKUP($A$1,$B$1:$N$10,9)>0,HLOOKUP($A$1,$B$1:$N$10,9)," ") ->  | B9: 6.3 | C9: 6.3 | D9: 6.3 | E9: 6.3 | F9: 6.3+4.0 | G9: 6.3 | H9: 6.3 | I9: 6.3 | J9: 6.3 | K9: 6.3
A10: =IF(HLOOKUP($A$1,$B$1:$N$10,10)>0,HLOOKUP($A$1,$B$1:$N$10,10)," ") ->  | B10: 7.0 | C10: 7.0 | D10: 7.0 | E10: 7.0 | G10: 7.0 | H10: 7.0 | I10: 7.0 | J10: 7.0 | K10: 7.0

Sheet lijst slimfix (hidden)
C1: 1 | D1: 2 | E1: 3 | F1: 4 | G1: 5 | H1: 6 | I1: 7 | J1: 8 | K1: 9 | L1: 10 | M1: 11 | N1: 12 | O1: 13 | P1: 14 | Q1: 15 | R1: 16 | S1: 17 | T1: 18 | U1: 19 | V1: 20 | W1: 21 | X1: 22 | Y1: 23 | Z1: 24 | AA1: 25
A2: Keuzevelden | R2: AANTAL
F3: t.p.v. kruising tengel/gording | K3: afschuifkrachten
H4: dakvlak 1 | I4: dakvlak 2 | N4: dakvlak 1 | O4: dakvlak 2 | R4: Schroef 1 | T4: Schroef 2 | V4: Volgplaatjes | X4: Lucht. Profielen
A5: type | B5: RC-waarde | C5: samen | D5: beplating | E5: gewicht | F5: type | G5: eenheid/ds | H5: aantal elem | I5: aantal elem | J5: schroef tot | L5: eenheid/ds | M5: dikte schr | N5: aantal/pl | O5: aantal/pl | P5: schroef tot. | R5: type | S5: aantal eenheden | T5: type | U5: aantal eenheden | V5: aantal eenheden | X5: m1 | Z5: aantal
A6: SlimFix 3/3 | B6: 2.5 | C6: =A6&" "&B6 -> SlimFix 3/3 2,5 | D6: 3 | E6: 6.5 | F6: Schroef 160xØ6 | G6: 100 | H6: =CEILING(SlimFix!$D$32*SlimFix!$J$44/1020,1) -> 0 | I6: =CEILING(SlimFix!$D$50*SlimFix!$J$57/1020,1) -> 0 | J6: =((H6*SlimFix!$D$35)+(I6*SlimFix!$D$52))*3 -> 0 | K6: Schroef 160xØ6 | L6: 100 | M6: 6 | N6: =IF(calcu!$I$32<=0,0,calcu!$I$32) ->  | O6: =IF(OR(I6=0,calcu!$U$32<=0),0,calcu!$U$32) ->  | P6: =(H6*N6)+(I6*O6) ->  | R6: =F6 -> Schroef 160xØ6 | S6: =CEILING((J6+P6)/G6,1) ->  | V6: =CEILING(P6/100,1) ->  | W6: Luchtdichte afdekprofielen | X6: =CEILING((H6*(SlimFix!$J$32/1000))+(I6*(SlimFix!$J$50/1000)),1) -> 0 | Y6: Door de tengel t.p.v. elke onderliggende gording/muurplaat: | Z6: 3 | AA6: Tussen de tengels t.p.v. de plaatvaste oplegging/muurplaat: | AC6: =VLOOKUP($AC$5,A6:B96,2) ->  | AE6: 2.5 | AF6: 2.5 | AG6: 2.5 | AH6: 2.5 | AI6: 1.5+4.0
A7: SlimFix 3/3 | B7: 3.0 | C7: SlimFix 3/3 3 | D7: 3 | E7: 7 | F7: Schroef 160xØ6 | G7: 100 | H7: =CEILING(SlimFix!$D$32*SlimFix!$J$44/1020,1) -> 0 | I7: =CEILING(SlimFix!$D$50*SlimFix!$J$57/1020,1) -> 0 | J7: =((H7*SlimFix!$D$35)+(I7*SlimFix!$D$52))*3 -> 0 | K7: Schroef 160xØ6 | L7: 100 | M7: 6 | N7: =IF(calcu!$I$32<=0,0,calcu!$I$32) ->  | O7: =IF(OR(I7=0,calcu!$U$32<=0),0,calcu!$U$32) ->  | P7: =(H7*N7)+(I7*O7) ->  | R7: =F7 -> Schroef 160xØ6 | S7: =CEILING((J7+P7)/G7,1) ->  | V7: =CEILING(P7/100,1) ->  | W7: Luchtdichte afdekprofielen | X7: =CEILING((H7*(SlimFix!$J$32/1000))+(I7*(SlimFix!$J$50/1000)),1) -> 0 | Y7: Door de tengel t.p.v. elke onderliggende gording/muurplaat: | Z7: 3 | AA7: Tussen de tengels t.p.v. de plaatvaste oplegging/muurplaat: | AE7: 3.0 | AF7: 3.0 | AG7: 3.0 | AH7: 3.0 | AI7: 2.5+4.0
A8: SlimFix 3/3 | B8: 3.5 | C8: SlimFix 3/3 3,5 | D8: 3 | E8: 7 | F8: Schroef 180xØ6 | G8: 100 | H8: =CEILING(SlimFix!$D$32*SlimFix!$J$44/1020,1) -> 0 | I8: =CEILING(SlimFix!$D$50*SlimFix!$J$57/1020,1) -> 0 | J8: =((H8*SlimFix!$D$35)+(I8*SlimFix!$D$52))*3 -> 0 | K8: Schroef 180xØ6 | L8: 100 | M8: 6 | N8: =IF(calcu!$I$32<=0,0,calcu!$I$32) ->  | O8: =IF(OR(I8=0,calcu!$U$32<=0),0,calcu!$U$32) ->  | R8: Schroef 180xØ6 | S8: =CEILING((J8+P8)/G8,1) ->  | W8: Luchtdichte afdekprofielen | X8: =CEILING((H8*(SlimFix!$J$32/1000))+(I8*(SlimFix!$J$50/1000)),1) -> 0 | Y8: Door de tengel t.p.v. elke onderliggende gording/muurplaat: | Z8: 3 | AA8: Tussen de tengels t.p.v. de plaatvaste oplegging/muurplaat: | AE8: 3.5 | AF8: 3.5 | AG8: 3.5 | AH8: 3.5 | AI8: 3.0+4.0
A9: SlimFix 3/3 | B9: 4.0 | C9: SlimFix 3/3 4 | D9: 3 | E9: 7.5 | F9: Schroef 200xØ6 | G9: 100 | H9: =CEILING(SlimFix!$D$32*SlimFix!$J$44/1020,1) -> 0 | I9: =CEILING(SlimFix!$D$50*SlimFix!$J$57/1020,1) -> 0 | J9: =((H9*SlimFix!$D$35)+(I9*SlimFix!$D$52))*3 -> 0 | K9: Schroef 200xØ8 | L9: 50 | M9: 8 | N9: =IF(calcu!$I$33<=0,0,calcu!$I$33) ->  | O9: =IF(OR(I9=0,calcu!$U$33<=0),0,calcu!$U$33) ->  | R9: Schroef 200xØ6 | S9: =CEILING(J9/G9,1) -> 0 | T9: =K9 -> Schroef 200xØ8 | U9: =CEILING(P9/L9,1) ->  | W9: Luchtdichte afdekprofielen | X9: =CEILING((H9*(SlimFix!$J$32/1000))+(I9*(SlimFix!$J$50/1000)),1) -> 0 | Y9: Door de tengel t.p.v. elke onderliggende gording/muurplaat: | Z9: 3 | AA9: Tussen de tengels t.p.v. de plaatvaste oplegging/muurplaat: | AE9: 4.0 | AF9: 4.0 | AG9: 4.0 | AH9: 4.0 | AI9: 3.5+4.0
A10: SlimFix 3/3 | B10: 4.5 | C10: SlimFix 3/3 4,5 | D10: 3 | E10: 8 | F10: Schroef 220xØ6 | G10: 100 | H10: =CEILING(SlimFix!$D$32*SlimFix!$J$44/1020,1) -> 0 | I10: =CEILING(SlimFix!$D$50*SlimFix!$J$57/1020,1) -> 0 | J10: =((H10*SlimFix!$D$35)+(I10*SlimFix!$D$52))*3 -> 0 | K10: Schroef 200xØ8 | L10: 50 | M10: 8 | N10: =IF(calcu!$I$33<=0,0,calcu!$I$33) ->  | O10: =IF(OR(I10=0,calcu!$U$33<=0),0,calcu!$U$33) ->  | R10: Schroef 220xØ6 | S10: =CEILING(J10/G10,1) -> 0 | T10: =K10 -> Schroef 200xØ8 | U10: =CEILING(P10/L10,1) ->  | W10: Luchtdichte afdekprofielen | X10: =CEILING((H10*(SlimFix!$J$32/1000))+(I10*(SlimFix!$J$50/1000)),1) -> 0 | Y10: Door de tengel t.p.v. elke onderliggende gording/muurplaat: | Z10: 3 | AA10: Tussen de tengels t.p.v. de plaatvaste oplegging/muurplaat: | AE10: 4.5 | AF10: 4.5 | AG10: 4.5 | AH10: 4.5 | AI10: 4.0+4.0
A11: SlimFix 3/3 | B11: 5.0 | C11: SlimFix 3/3 5 | D11: 3 | E11: 9 | F11: Schroef 240xØ6 | G11: 100 | H11: =CEILING(SlimFix!$D$32*SlimFix!$J$44/1020,1) -> 0 | I11: =CEILING(SlimFix!$D$50*SlimFix!$J$57/1020,1) -> 0 | J11: =((H11*SlimFix!$D$35)+(I11*SlimFix!$D$52))*3 -> 0 | K11: Schroef 240xØ8 | L11: 50 | M11: 8 | N11: =IF(calcu!$I$33<=0,0,calcu!$I$33) ->  | O11: =IF(OR(I11=0,calcu!$U$33<=0),0,calcu!$U$33) ->  | R11: Schroef 240xØ6 | S11: 0 | T11: Schroef 240xØ8 | W11: Luchtdichte afdekprofielen | X11: =CEILING((H11*(SlimFix!$J$32/1000))+(I11*(SlimFix!$J$50/1000)),1) -> 0 | Y11: Door de tengel t.p.v. elke onderliggende gording/muurplaat: | Z11: 3 | AA11: Tussen de tengels t.p.v. de plaatvaste oplegging/muurplaat: | AE11: 5.0 | AF11: 5.0 | AG11: 5.0 | AH11: 5.0 | AI11: 4.5+4.0
A12: SlimFix 3/3 | B12: 5.5 | C12: SlimFix 3/3 5,5 | D12: 3 | E12: 9 | F12: Schroef 260xØ6 | G12: 100 | H12: =CEILING(SlimFix!$D$32*SlimFix!$J$44/1020,1) -> 0 | I12: =CEILING(SlimFix!$D$50*SlimFix!$J$57/1020,1) -> 0 | J12: =((H12*SlimFix!$D$35)+(I12*SlimFix!$D$52))*3 -> 0 | K12: Schroef 240xØ8 | L12: 50 | M12: 8 | N12: =IF(calcu!$I$33<=0,0,calcu!$I$33) ->  | O12: =IF(OR(I12=0,calcu!$U$33<=0),0,calcu!$U$33) ->  | R12: Schroef 260xØ6 | S12: 0 | T12: Schroef 240xØ8 | W12: Luchtdichte afdekprofielen | X12: =CEILING((H12*(SlimFix!$J$32/1000))+(I12*(SlimFix!$J$50/1000)),1) -> 0 | Y12: Door de tengel t.p.v. elke onderliggende gording/muurplaat: | Z12: 3 | AA12: Tussen de tengels t.p.v. de plaatvaste oplegging/muurplaat: | AE12: 5.5 | AF12: 5.5 | AG12: 5.5 | AH12: 5.5 | AI12: 5.5+4.0
A13: SlimFix 3/3 | B13: 6.3 | C13: SlimFix 3/3 6,3 | D13: 3 | E13: 9.5 | F13: Schroef 280xØ6 | G13: 100 | H13: =CEILING(SlimFix!$D$32*SlimFix!$J$44/1020,1) -> 0 | I13: =CEILING(SlimFix!$D$50*SlimFix!$J$57/1020,1) -> 0 | J13: =((H13*SlimFix!$D$35)+(I13*SlimFix!$D$52))*3 -> 0 | K13: Schroef 260xØ8 | L13: 50 | M13: 8 | N13: =IF(calcu!$I$33<=0,0,calcu!$I$33) ->  | O13: =IF(OR(I13=0,calcu!$U$33<=0),0,calcu!$U$33) ->  | R13: Schroef 280xØ6 | S13: 0 | T13: Schroef 260xØ8 | W13: Luchtdichte afdekprofielen | X13: =CEILING((H13*(SlimFix!$J$32/1000))+(I13*(SlimFix!$J$50/1000)),1) -> 0 | Y13: Door de tengel t.p.v. elke onderliggende gording/muurplaat: | Z13: 3 | AA13: Tussen de tengels t.p.v. de plaatvaste oplegging/muurplaat: | AE13: 6.3 | AF13: 6.3 | AG13: 6.3 | AH13: 6.3
A14: SlimFix 3/3 | B14: 7.0 | C14: SlimFix 3/3 7 | D14: 3 | E14: 10 | F14: Schroef 300xØ6 | G14: 100 | H14: =CEILING(SlimFix!$D$32*SlimFix!$J$44/1020,1) -> 0 | I14: =CEILING(SlimFix!$D$50*SlimFix!$J$57/1020,1) -> 0 | J14: =((H14*SlimFix!$D$35)+(I14*SlimFix!$D$52))*3 -> 0 | K14: Schroef 280xØ8 | L14: 50 | M14: 8 | N14: =IF(calcu!$I$33<=0,0,calcu!$I$33) ->  | O14: =IF(OR(I14=0,calcu!$U$33<=0),0,calcu!$U$33) ->  | R14: Schroef 300xØ6 | S14: 0 | T14: Schroef 280xØ8 | W14: Luchtdichte afdekprofielen | X14: =CEILING((H14*(SlimFix!$J$32/1000))+(I14*(SlimFix!$J$50/1000)),1) -> 0 | Y14: Door de tengel t.p.v. elke onderliggende gording/muurplaat: | Z14: 3 | AA14: Tussen de tengels t.p.v. de plaatvaste oplegging/muurplaat: | AD14: =IF(OR($C$10="SlimFix 3/3L",$C$10="SlimFix 3/3",$C$10="SlimFix 8/8",$C$10="SlimFix 8/8L"),' lijst slimfix'!$B$15:$B$23,IF(OR($C$10="SlimFix-XT 3/3R",$C$10="SlimFix-XT 8/8R"),' lijst slimfix'!$B$62:$B$68,2)) -> 2 | AE14: 7.0 | AF14: 7.0 | AG14: 7.0 | AH14: 7.0
A15: SlimFix 3/3L | B15: 2.5 | C15: SlimFix 3/3L 2,5 | D15: 3 | E15: 8.5 | F15: Schroef 160xØ6 | G15: 100 | H15: =CEILING(SlimFix!$D$32*SlimFix!$J$44/1020,1) -> 0 | I15: =CEILING(SlimFix!$D$50*SlimFix!$J$57/1020,1) -> 0 | J15: =((H15*SlimFix!$D$35)+(I15*SlimFix!$D$52))*3 -> 0 | K15: Schroef 160xØ6 | L15: 50 | M15: 6 | N15: =IF(calcu!$I$32<=0,0,calcu!$I$32) ->  | O15: =IF(OR(I15=0,calcu!$U$32<=0),0,calcu!$U$32) ->  | R15: Schroef 160xØ6 | S15: =CEILING((J15+P15)/G15,1) ->  | W15: Luchtdichte afdekprofielen | X15: =CEILING((H15*(SlimFix!$J$32/1000))+(I15*(SlimFix!$J$50/1000)),1) -> 0 | Y15: Door de tengel t.p.v. elke onderliggende gording/muurplaat: | Z15: 3 | AA15: Tussen de tengels t.p.v. de plaatvaste oplegging/muurplaat:
A16: SlimFix 3/3L | B16: 3.0 | C16: SlimFix 3/3L 3 | D16: 3 | E16: 9 | F16: Schroef 180xØ6 | G16: 100 | H16: =CEILING(SlimFix!$D$32*SlimFix!$J$44/1020,1) -> 0 | I16: =CEILING(SlimFix!$D$50*SlimFix!$J$57/1020,1) -> 0 | J16: =((H16*SlimFix!$D$35)+(I16*SlimFix!$D$52))*3 -> 0 | K16: Schroef 180xØ6 | L16: 50 | M16: 6 | N16: =IF(calcu!$I$32<=0,0,calcu!$I$32) ->  | O16: =IF(OR(I16=0,calcu!$U$32<=0),0,calcu!$U$32) ->  | R16: Schroef 180xØ6 | S16: =CEILING((J16+P16)/G16,1) ->  | W16: Luchtdichte afdekprofielen | X16: =CEILING((H16*(SlimFix!$J$32/1000))+(I16*(SlimFix!$J$50/1000)),1) -> 0 | Y16: Door de tengel t.p.v. elke onderliggende gording/muurplaat: | Z16: 3 | AA16: Tussen de tengels t.p.v. de plaatvaste oplegging/muurplaat: | AD16: =IF(OR($C$10="SlimFix 3/3L",$C$10="SlimFix 3/3",$C$10="SlimFix 8/8",$C$10="SlimFix 8/8L"),' lijst slimfix'!$B$15:$B$23,IF(OR($C$10="SlimFix-XT 3/3R",$C$10="SlimFix-XT 8/8R"),' lijst slimfix'!$B$62:$B$68,IF($C$10="SlimFix-XT Passief",' lijst slimfix'!$B$87:$B$88,2))) -> 2
A17: SlimFix 3/3L | B17: 3.5 | C17: SlimFix 3/3L 3,5 | D17: 3 | E17: 9.5 | F17: Schroef 200xØ6 | G17: 100 | H17: =CEILING(SlimFix!$D$32*SlimFix!$J$44/1020,1) -> 0 | I17: =CEILING(SlimFix!$D$50*SlimFix!$J$57/1020,1) -> 0 | J17: =((H17*SlimFix!$D$35)+(I17*SlimFix!$D$52))*3 -> 0 | K17: Schroef 180xØ8 | L17: 50 | M17: 8 | N17: =IF(calcu!$I$33<=0,0,calcu!$I$33) ->  | O17: =IF(OR(I17=0,calcu!$U$33<=0),0,calcu!$U$33) ->  | R17: Schroef 200xØ6 | S17: =CEILING(J17/G17,1) -> 0 | T17: =K17 -> Schroef 180xØ8 | U17: =CEILING(P17/L17,1) ->  | W17: Luchtdichte afdekprofielen | X17: =CEILING((H17*(SlimFix!$J$32/1000))+(I17*(SlimFix!$J$50/1000)),1) -> 0 | Y17: Door de tengel t.p.v. elke onderliggende gording/muurplaat: | Z17: 3 | AA17: Tussen de tengels t.p.v. de plaatvaste oplegging/muurplaat:
A18: SlimFix 3/3L | B18: 4.0 | C18: SlimFix 3/3L 4 | D18: 3 | E18: 10 | F18: Schroef 220xØ6 | G18: 100 | H18: =CEILING(SlimFix!$D$32*SlimFix!$J$44/1020,1) -> 0 | I18: =CEILING(SlimFix!$D$50*SlimFix!$J$57/1020,1) -> 0 | J18: =((H18*SlimFix!$D$35)+(I18*SlimFix!$D$52))*3 -> 0 | K18: Schroef 200xØ8 | L18: 50 | M18: 8 | N18: =IF(calcu!$I$33<=0,0,calcu!$I$33) ->  | O18: =IF(OR(I18=0,calcu!$U$33<=0),0,calcu!$U$33) ->  | R18: Schroef 220xØ6 | S18: 0 | T18: Schroef 200xØ8 | W18: Luchtdichte afdekprofielen | X18: =CEILING((H18*(SlimFix!$J$32/1000))+(I18*(SlimFix!$J$50/1000)),1) -> 0 | Y18: Door de tengel t.p.v. elke onderliggende gording/muurplaat: | Z18: 3 | AA18: Tussen de tengels t.p.v. de plaatvaste oplegging/muurplaat:
A19: SlimFix 3/3L | B19: 4.5 | C19: SlimFix 3/3L 4,5 | D19: 3 | E19: 11 | F19: Schroef 240xØ6 | G19: 100 | H19: =CEILING(SlimFix!$D$32*SlimFix!$J$44/1020,1) -> 0 | I19: =CEILING(SlimFix!$D$50*SlimFix!$J$57/1020,1) -> 0 | J19: =((H19*SlimFix!$D$35)+(I19*SlimFix!$D$52))*3 -> 0 | K19: Schroef 240xØ8 | L19: 50 | M19: 8 | N19: =IF(calcu!$I$33<=0,0,calcu!$I$33) ->  | O19: =IF(OR(I19=0,calcu!$U$33<=0),0,calcu!$U$33) ->  | R19: Schroef 240xØ6 | S19: 0 | T19: Schroef 240xØ8 | W19: Luchtdichte afdekprofielen | X19: =CEILING((H19*(SlimFix!$J$32/1000))+(I19*(SlimFix!$J$50/1000)),1) -> 0 | Y19: Door de tengel t.p.v. elke onderliggende gording/muurplaat: | Z19: 3 | AA19: Tussen de tengels t.p.v. de plaatvaste oplegging/muurplaat:
A20: SlimFix 3/3L | B20: 5.0 | C20: SlimFix 3/3L 5 | D20: 3 | E20: 11.5 | F20: Schroef 260xØ6 | G20: 100 | H20: =CEILING(SlimFix!$D$32*SlimFix!$J$44/1020,1) -> 0 | I20: =CEILING(SlimFix!$D$50*SlimFix!$J$57/1020,1) -> 0 | J20: =((H20*SlimFix!$D$35)+(I20*SlimFix!$D$52))*3 -> 0 | K20: Schroef 260xØ8 | L20: 50 | M20: 8 | N20: =IF(calcu!$I$33<=0,0,calcu!$I$33) ->  | O20: =IF(OR(I20=0,calcu!$U$33<=0),0,calcu!$U$33) ->  | R20: Schroef 260xØ6 | S20: 0 | T20: Schroef 260xØ8 | W20: Luchtdichte afdekprofielen | X20: =CEILING((H20*(SlimFix!$J$32/1000))+(I20*(SlimFix!$J$50/1000)),1) -> 0 | Y20: Door de tengel t.p.v. elke onderliggende gording/muurplaat: | Z20: 3 | AA20: Tussen de tengels t.p.v. de plaatvaste oplegging/muurplaat:
A21: SlimFix 3/3L | B21: 5.5 | C21: SlimFix 3/3L 5,5 | D21: 3 | E21: 12 | F21: Schroef 260xØ6 | G21: 100 | H21: =CEILING(SlimFix!$D$32*SlimFix!$J$44/1020,1) -> 0 | I21: =CEILING(SlimFix!$D$50*SlimFix!$J$57/1020,1) -> 0 | J21: =((H21*SlimFix!$D$35)+(I21*SlimFix!$D$52))*3 -> 0 | K21: Schroef 260xØ8 | L21: 50 | M21: 8 | N21: =IF(calcu!$I$33<=0,0,calcu!$I$33) ->  | O21: =IF(OR(I21=0,calcu!$U$33<=0),0,calcu!$U$33) ->  | R21: Schroef 260xØ6 | S21: 0 | T21: Schroef 260xØ8 | W21: Luchtdichte afdekprofielen | X21: =CEILING((H21*(SlimFix!$J$32/1000))+(I21*(SlimFix!$J$50/1000)),1) -> 0 | Y21: Door de tengel t.p.v. elke onderliggende gording/muurplaat: | Z21: 3 | AA21: Tussen de tengels t.p.v. de plaatvaste oplegging/muurplaat:
A22: SlimFix 3/3L | B22: 6.3 | C22: SlimFix 3/3L 6,3 | D22: 3 | E22: 13 | F22: Schroef 300xØ6 | G22: 100 | H22: =CEILING(SlimFix!$D$32*SlimFix!$J$44/1020,1) -> 0 | I22: =CEILING(SlimFix!$D$50*SlimFix!$J$57/1020,1) -> 0 | J22: =((H22*SlimFix!$D$35)+(I22*SlimFix!$D$52))*3 -> 0 | K22: Schroef 280xØ8 | L22: 50 | M22: 8 | N22: =IF(calcu!$I$33<=0,0,calcu!$I$33) ->  | O22: =IF(OR(I22=0,calcu!$U$33<=0),0,calcu!$U$33) ->  | R22: Schroef 300xØ6 | S22: 0 | T22: Schroef 280xØ8 | W22: Luchtdichte afdekprofielen | X22: =CEILING((H22*(SlimFix!$J$32/1000))+(I22*(SlimFix!$J$50/1000)),1) -> 0 | Y22: Door de tengel t.p.v. elke onderliggende gording/muurplaat: | Z22: 3 | AA22: Tussen de tengels t.p.v. de plaatvaste oplegging/muurplaat:
A23: SlimFix 3/3L | B23: 7.0 | C23: SlimFix 3/3L 7 | D23: 3 | E23: 14.5 | F23: Schroef 300xØ8 | G23: 50 | H23: =CEILING(SlimFix!$D$32*SlimFix!$J$44/1020,1) -> 0 | I23: =CEILING(SlimFix!$D$50*SlimFix!$J$57/1020,1) -> 0 | J23: =((H23*SlimFix!$D$35)+(I23*SlimFix!$D$52))*2 -> 0 | K23: Schroef 300xØ8 | L23: 50 | M23: 8 | N23: =IF(calcu!$I$33<=0,0,calcu!$I$33) ->  | O23: =IF(OR(I23=0,calcu!$U$33<=0),0,calcu!$U$33) ->  | T23: Schroef 300xØ8 | U23: =CEILING((P23+J23)/L23,1) ->  | V23: =CEILING((P23+J23)/100,1) ->  | W23: Luchtdichte afdekprofielen | X23: =CEILING((H23*(SlimFix!$J$32/1000))+(I23*(SlimFix!$J$50/1000)),1) -> 0 | Y23: Tussen de tengel t.p.v. elke onderliggende gording/muurplaat: | Z23: 2 | AA23: Tussen de tengels t.p.v. de plaatvaste oplegging/muurplaat:
A24: SlimFix 8/8 | B24: 2.5 | C24: SlimFix 8/8 2,5 | D24: 8 | E24: 12.5 | F24: Schroef 160xØ6 | G24: 100 | H24: =CEILING(SlimFix!$D$32*SlimFix!$J$44/1020,1) -> 0 | I24: =CEILING(SlimFix!$D$50*SlimFix!$J$57/1020,1) -> 0 | J24: =((H24*SlimFix!$D$35)+(I24*SlimFix!$D$52))*3 -> 0 | K24: Schroef 160xØ6 | L24: 100 | M24: 6 | N24: =IF(calcu!$I$34<=0,0,calcu!$I$34) ->  | O24: =IF(OR(I24=0,calcu!$U$34<=0),0,calcu!$U$34) ->  | R24: Schroef 160xØ6 | S24: =CEILING((J24+P24)/G24,1) ->  | V24: =CEILING(P24/100,1) ->  | W24: Luchtdichte afdekprofielen | X24: =CEILING((H24*(SlimFix!$J$32/1000))+(I24*(SlimFix!$J$50/1000)),1) -> 0 | Y24: Door de tengel t.p.v. elke onderliggende gording/muurplaat: | Z24: 3 | AA24: Tussen de tengels t.p.v. de plaatvaste oplegging/muurplaat:
A25: SlimFix 8/8 | B25: 3.0 | C25: SlimFix 8/8 3 | D25: 8 | E25: 13 | F25: Schroef 180xØ6 | G25: 100 | H25: =CEILING(SlimFix!$D$32*SlimFix!$J$44/1020,1) -> 0 | I25: =CEILING(SlimFix!$D$50*SlimFix!$J$57/1020,1) -> 0 | J25: =((H25*SlimFix!$D$35)+(I25*SlimFix!$D$52))*3 -> 0 | K25: Schroef 180xØ6 | L25: 100 | M25: 6 | N25: =IF(calcu!$I$34<=0,0,calcu!$I$34) ->  | O25: =IF(OR(I25=0,calcu!$U$34<=0),0,calcu!$U$34) ->  | R25: Schroef 180xØ6 | S25: =CEILING((J25+P25)/G25,1) ->  | W25: Luchtdichte afdekprofielen | X25: =CEILING((H25*(SlimFix!$J$32/1000))+(I25*(SlimFix!$J$50/1000)),1) -> 0 | Y25: Door de tengel t.p.v. elke onderliggende gording/muurplaat: | Z25: 3 | AA25: Tussen de tengels t.p.v. de plaatvaste oplegging/muurplaat:
A26: SlimFix 8/8 | B26: 3.5 | C26: SlimFix 8/8 3,5 | D26: 8 | E26: 13 | F26: Schroef 200xØ6 | G26: 100 | H26: =CEILING(SlimFix!$D$32*SlimFix!$J$44/1020,1) -> 0 | I26: =CEILING(SlimFix!$D$50*SlimFix!$J$57/1020,1) -> 0 | J26: =((H26*SlimFix!$D$35)+(I26*SlimFix!$D$52))*3 -> 0 | K26: Schroef 180xØ8 | L26: 50 | M26: 8 | N26: =IF(calcu!$I$35<=0,0,calcu!$I$35) ->  | O26: =IF(OR(I26=0,calcu!$U$35<=0),0,calcu!$U$35) ->  | R26: Schroef 200xØ6 | S26: =CEILING(J26/G26,1) -> 0 | T26: =K26 -> Schroef 180xØ8 | U26: =CEILING(P26/L26,1) ->  | W26: Luchtdichte afdekprofielen | X26: =CEILING((H26*(SlimFix!$J$32/1000))+(I26*(SlimFix!$J$50/1000)),1) -> 0 | Y26: Door de tengel t.p.v. elke onderliggende gording/muurplaat: | Z26: 3 | AA26: Tussen de tengels t.p.v. de plaatvaste oplegging/muurplaat:
A27: SlimFix 8/8 | B27: 4.0 | C27: SlimFix 8/8 4 | D27: 8 | E27: 13 | F27: Schroef 220xØ6 | G27: 100 | H27: =CEILING(SlimFix!$D$32*SlimFix!$J$44/1020,1) -> 0 | I27: =CEILING(SlimFix!$D$50*SlimFix!$J$57/1020,1) -> 0 | J27: =((H27*SlimFix!$D$35)+(I27*SlimFix!$D$52))*3 -> 0 | K27: Schroef 200xØ8 | L27: 50 | M27: 8 | N27: =IF(calcu!$I$35<=0,0,calcu!$I$35) ->  | O27: =IF(OR(I27=0,calcu!$U$35<=0),0,calcu!$U$35) ->  | R27: Schroef 220xØ6 | S27: 0 | T27: Schroef 200xØ8 | W27: Luchtdichte afdekprofielen | X27: =CEILING((H27*(SlimFix!$J$32/1000))+(I27*(SlimFix!$J$50/1000)),1) -> 0 | Y27: Door de tengel t.p.v. elke onderliggende gording/muurplaat: | Z27: 3 | AA27: Tussen de tengels t.p.v. de plaatvaste oplegging/muurplaat:
A28: SlimFix 8/8 | B28: 4.5 | C28: SlimFix 8/8 4,5 | D28: 8 | E28: 14 | F28: Schroef 220xØ6 | G28: 100 | H28: =CEILING(SlimFix!$D$32*SlimFix!$J$44/1020,1) -> 0 | I28: =CEILING(SlimFix!$D$50*SlimFix!$J$57/1020,1) -> 0 | J28: =((H28*SlimFix!$D$35)+(I28*SlimFix!$D$52))*3 -> 0 | K28: Schroef 220xØ8 | L28: 50 | M28: 8 | N28: =IF(calcu!$I$35<=0,0,calcu!$I$35) ->  | O28: =IF(OR(I28=0,calcu!$U$35<=0),0,calcu!$U$35) ->  | R28: Schroef 220xØ6 | S28: 0 | T28: Schroef 220xØ8 | W28: Luchtdichte afdekprofielen | X28: =CEILING((H28*(SlimFix!$J$32/1000))+(I28*(SlimFix!$J$50/1000)),1) -> 0 | Y28: Door de tengel t.p.v. elke onderliggende gording/muurplaat: | Z28: 3 | AA28: Tussen de tengels t.p.v. de plaatvaste oplegging/muurplaat:
A29: SlimFix 8/8 | B29: 5.0 | C29: SlimFix 8/8 5 | D29: 8 | E29: 14 | F29: Schroef 240xØ6 | G29: 100 | H29: =CEILING(SlimFix!$D$32*SlimFix!$J$44/1020,1) -> 0 | I29: =CEILING(SlimFix!$D$50*SlimFix!$J$57/1020,1) -> 0 | J29: =((H29*SlimFix!$D$35)+(I29*SlimFix!$D$52))*3 -> 0 | K29: Schroef 240xØ8 | L29: 50 | M29: 8 | N29: =IF(calcu!$I$35<=0,0,calcu!$I$35) ->  | O29: =IF(OR(I29=0,calcu!$U$35<=0),0,calcu!$U$35) ->  | R29: Schroef 240xØ6 | S29: 0 | T29: Schroef 240xØ8 | W29: Luchtdichte afdekprofielen | X29: =CEILING((H29*(SlimFix!$J$32/1000))+(I29*(SlimFix!$J$50/1000)),1) -> 0 | Y29: Door de tengel t.p.v. elke onderliggende gording/muurplaat: | Z29: 3 | AA29: Tussen de tengels t.p.v. de plaatvaste oplegging/muurplaat:
A30: SlimFix 8/8 | B30: 5.5 | C30: SlimFix 8/8 5,5 | D30: 8 | E30: 14 | F30: Schroef 260xØ6 | G30: 100 | H30: =CEILING(SlimFix!$D$32*SlimFix!$J$44/1020,1) -> 0 | I30: =CEILING(SlimFix!$D$50*SlimFix!$J$57/1020,1) -> 0 | J30: =((H30*SlimFix!$D$35)+(I30*SlimFix!$D$52))*3 -> 0 | K30: Schroef 260xØ8 | L30: 50 | M30: 8 | N30: =IF(calcu!$I$35<=0,0,calcu!$I$35) ->  | O30: =IF(OR(I30=0,calcu!$U$35<=0),0,calcu!$U$35) ->  | R30: Schroef 260xØ6 | S30: 0 | T30: Schroef 260xØ8 | W30: Luchtdichte afdekprofielen | X30: =CEILING((H30*(SlimFix!$J$32/1000))+(I30*(SlimFix!$J$50/1000)),1) -> 0 | Y30: Door de tengel t.p.v. elke onderliggende gording/muurplaat: | Z30: 3 | AA30: Tussen de tengels t.p.v. de plaatvaste oplegging/muurplaat:
A31: SlimFix 8/8 | B31: 6.3 | C31: SlimFix 8/8 6,3 | D31: 8 | E31: 14.5 | F31: Schroef 280xØ6 | G31: 100 | H31: =CEILING(SlimFix!$D$32*SlimFix!$J$44/1020,1) -> 0 | I31: =CEILING(SlimFix!$D$50*SlimFix!$J$57/1020,1) -> 0 | J31: =((H31*SlimFix!$D$35)+(I31*SlimFix!$D$52))*3 -> 0 | K31: Schroef 260xØ8 | L31: 50 | M31: 8 | N31: =IF(calcu!$I$35<=0,0,calcu!$I$35) ->  | O31: =IF(OR(I31=0,calcu!$U$35<=0),0,calcu!$U$35) ->  | R31: Schroef 280xØ6 | S31: 0 | T31: Schroef 260xØ8 | W31: Luchtdichte afdekprofielen | X31: =CEILING((H31*(SlimFix!$J$32/1000))+(I31*(SlimFix!$J$50/1000)),1) -> 0 | Y31: Door de tengel t.p.v. elke onderliggende gording/muurplaat: | Z31: 3 | AA31: Tussen de tengels t.p.v. de plaatvaste oplegging/muurplaat:
A32: SlimFix 8/8 | B32: 7.0 | C32: SlimFix 8/8 7 | D32: 8 | E32: 15 | F32: Schroef 300xØ6 | G32: 100 | H32: =CEILING(SlimFix!$D$32*SlimFix!$J$44/1020,1) -> 0 | I32: =CEILING(SlimFix!$D$50*SlimFix!$J$57/1020,1) -> 0 | J32: =((H32*SlimFix!$D$35)+(I32*SlimFix!$D$52))*3 -> 0 | K32: Schroef 280xØ8 | L32: 50 | M32: 8 | N32: =IF(calcu!$I$35<=0,0,calcu!$I$35) ->  | O32: =IF(OR(I32=0,calcu!$U$35<=0),0,calcu!$U$35) ->  | R32: Schroef 300xØ6 | S32: 0 | T32: Schroef 280xØ8 | W32: Luchtdichte afdekprofielen | X32: =CEILING((H32*(SlimFix!$J$32/1000))+(I32*(SlimFix!$J$50/1000)),1) -> 0 | Y32: Door de tengel t.p.v. elke onderliggende gording/muurplaat: | Z32: 3 | AA32: Tussen de tengels t.p.v. de plaatvaste oplegging/muurplaat:
A33: SlimFix 8/8L | B33: 2.5 | C33: SlimFix 8/8L 2,5 | D33: 8 | E33: 14 | F33: Schroef 160xØ6 | G33: 100 | H33: =CEILING(SlimFix!$D$32*SlimFix!$J$44/1020,1) -> 0 | I33: =CEILING(SlimFix!$D$50*SlimFix!$J$57/1020,1) -> 0 | J33: =((H33*SlimFix!$D$35)+(I33*SlimFix!$D$52))*3 -> 0 | K33: Schroef 160xØ6 | L33: 100 | M33: 6 | N33: =IF(calcu!$I$34<=0,0,calcu!$I$34) ->  | O33: =IF(OR(I33=0,calcu!$U$34<=0),0,calcu!$U$34) ->  | R33: Schroef 160xØ6 | S33: =CEILING((J33+P33)/G33,1) ->  | W33: Luchtdichte afdekprofielen | X33: =CEILING((H33*(SlimFix!$J$32/1000))+(I33*(SlimFix!$J$50/1000)),1) -> 0 | Y33: Door de tengel t.p.v. elke onderliggende gording/muurplaat: | Z33: 3 | AA33: Tussen de tengels t.p.v. de plaatvaste oplegging/muurplaat:
A34: SlimFix 8/8L | B34: 3.0 | C34: SlimFix 8/8L 3 | D34: 8 | E34: 15 | F34: Schroef 180xØ6 | G34: 100 | H34: =CEILING(SlimFix!$D$32*SlimFix!$J$44/1020,1) -> 0 | I34: =CEILING(SlimFix!$D$50*SlimFix!$J$57/1020,1) -> 0 | J34: =((H34*SlimFix!$D$35)+(I34*SlimFix!$D$52))*3 -> 0 | K34: Schroef 180xØ6 | L34: 100 | M34: 6 | N34: =IF(calcu!$I$34<=0,0,calcu!$I$34) ->  | O34: =IF(OR(I34=0,calcu!$U$34<=0),0,calcu!$U$34) ->  | R34: Schroef 180xØ6 | S34: =CEILING((J34+P34)/G34,1) ->  | W34: Luchtdichte afdekprofielen | X34: =CEILING((H34*(SlimFix!$J$32/1000))+(I34*(SlimFix!$J$50/1000)),1) -> 0 | Y34: Door de tengel t.p.v. elke onderliggende gording/muurplaat: | Z34: 3 | AA34: Tussen de tengels t.p.v. de plaatvaste oplegging/muurplaat:
A35: SlimFix 8/8L | B35: 3.5 | C35: =A35&" "&B35 -> SlimFix 8/8L 3,5 | D35: 8 | E35: 15.5 | F35: Schroef 220xØ6 | G35: 100 | H35: =CEILING(SlimFix!$D$32*SlimFix!$J$44/1020,1) -> 0 | I35: =CEILING(SlimFix!$D$50*SlimFix!$J$57/1020,1) -> 0 | J35: =((H35*SlimFix!$D$35)+(I35*SlimFix!$D$52))*3 -> 0 | K35: Schroef 200xØ8 | L35: 50 | M35: 8 | N35: =IF(calcu!$I$35<=0,0,calcu!$I$35) ->  | O35: =IF(OR(I35=0,calcu!$U$35<=0),0,calcu!$U$35) ->  | R35: Schroef 220xØ6 | S35: =CEILING(J35/G35,1) -> 0 | T35: =K35 -> Schroef 200xØ8 | U35: =CEILING(P35/L35,1) ->  | W35: Luchtdichte afdekprofielen | X35: =CEILING((H35*(SlimFix!$J$32/1000))+(I35*(SlimFix!$J$50/1000)),1) -> 0 | Y35: Door de tengel t.p.v. elke onderliggende gording/muurplaat: | Z35: 3 | AA35: Tussen de tengels t.p.v. de plaatvaste oplegging/muurplaat:
A36: SlimFix 8/8L | B36: 4.0 | C36: SlimFix 8/8L 4 | D36: 8 | E36: 16 | F36: Schroef 220xØ6 | G36: 100 | H36: =CEILING(SlimFix!$D$32*SlimFix!$J$44/1020,1) -> 0 | I36: =CEILING(SlimFix!$D$50*SlimFix!$J$57/1020,1) -> 0 | J36: =((H36*SlimFix!$D$35)+(I36*SlimFix!$D$52))*3 -> 0 | K36: Schroef 220xØ8 | L36: 50 | M36: 8 | N36: =IF(calcu!$I$35<=0,0,calcu!$I$35) ->  | O36: =IF(OR(I36=0,calcu!$U$35<=0),0,calcu!$U$35) ->  | R36: Schroef 220xØ6 | S36: 0 | T36: Schroef 220xØ8 | W36: Luchtdichte afdekprofielen | X36: =CEILING((H36*(SlimFix!$J$32/1000))+(I36*(SlimFix!$J$50/1000)),1) -> 0 | Y36: Door de tengel t.p.v. elke onderliggende gording/muurplaat: | Z36: 3 | AA36: Tussen de tengels t.p.v. de plaatvaste oplegging/muurplaat:
A37: SlimFix 8/8L | B37: 4.5 | C37: SlimFix 8/8L 4,5 | D37: 8 | E37: 17 | F37: Schroef 240xØ6 | G37: 100 | H37: =CEILING(SlimFix!$D$32*SlimFix!$J$44/1020,1) -> 0 | I37: =CEILING(SlimFix!$D$50*SlimFix!$J$57/1020,1) -> 0 | J37: =((H37*SlimFix!$D$35)+(I37*SlimFix!$D$52))*3 -> 0 | K37: Schroef 240xØ8 | L37: 50 | M37: 8 | N37: =IF(calcu!$I$35<=0,0,calcu!$I$35) ->  | O37: =IF(OR(I37=0,calcu!$U$35<=0),0,calcu!$U$35) ->  | R37: Schroef 240xØ6 | S37: 0 | T37: Schroef 240xØ8 | W37: Luchtdichte afdekprofielen | X37: =CEILING((H37*(SlimFix!$J$32/1000))+(I37*(SlimFix!$J$50/1000)),1) -> 0 | Y37: Door de tengel t.p.v. elke onderliggende gording/muurplaat: | Z37: 3 | AA37: Tussen de tengels t.p.v. de plaatvaste oplegging/muurplaat:
A38: SlimFix 8/8L | B38: 5.0 | C38: SlimFix 8/8L 5 | D38: 8 | E38: 17.5 | F38: Schroef 260xØ6 | G38: 100 | H38: =CEILING(SlimFix!$D$32*SlimFix!$J$44/1020,1) -> 0 | I38: =CEILING(SlimFix!$D$50*SlimFix!$J$57/1020,1) -> 0 | J38: =((H38*SlimFix!$D$35)+(I38*SlimFix!$D$52))*3 -> 0 | K38: Schroef 260xØ8 | L38: 50 | M38: 8 | N38: =IF(calcu!$I$35<=0,0,calcu!$I$35) ->  | O38: =IF(OR(I38=0,calcu!$U$35<=0),0,calcu!$U$35) ->  | R38: Schroef 260xØ6 | S38: 0 | T38: Schroef 260xØ8 | W38: Luchtdichte afdekprofielen | X38: =CEILING((H38*(SlimFix!$J$32/1000))+(I38*(SlimFix!$J$50/1000)),1) -> 0 | Y38: Door de tengel t.p.v. elke onderliggende gording/muurplaat: | Z38: 3 | AA38: Tussen de tengels t.p.v. de plaatvaste oplegging/muurplaat:
A39: SlimFix 8/8L | B39: 5.5 | C39: SlimFix 8/8L 5,5 | D39: 8 | E39: 18 | F39: Schroef 280xØ6 | G39: 100 | H39: =CEILING(SlimFix!$D$32*SlimFix!$J$44/1020,1) -> 0 | I39: =CEILING(SlimFix!$D$50*SlimFix!$J$57/1020,1) -> 0 | J39: =((H39*SlimFix!$D$35)+(I39*SlimFix!$D$52))*3 -> 0 | K39: Schroef 260xØ8 | L39: 50 | M39: 8 | N39: =IF(calcu!$I$35<=0,0,calcu!$I$35) ->  | O39: =IF(OR(I39=0,calcu!$U$35<=0),0,calcu!$U$35) ->  | R39: Schroef 280xØ6 | S39: 0 | T39: Schroef 260xØ8 | W39: Luchtdichte afdekprofielen | X39: =CEILING((H39*(SlimFix!$J$32/1000))+(I39*(SlimFix!$J$50/1000)),1) -> 0 | Y39: Door de tengel t.p.v. elke onderliggende gording/muurplaat: | Z39: 3 | AA39: Tussen de tengels t.p.v. de plaatvaste oplegging/muurplaat:
A40: SlimFix 8/8L | B40: 6.3 | C40: SlimFix 8/8L 6,3 | D40: 8 | E40: 19 | F40: Schroef 300xØ6 | G40: 100 | H40: =CEILING(SlimFix!$D$32*SlimFix!$J$44/1020,1) -> 0 | I40: =CEILING(SlimFix!$D$50*SlimFix!$J$57/1020,1) -> 0 | J40: =((H40*SlimFix!$D$35)+(I40*SlimFix!$D$52))*3 -> 0 | K40: Schroef 280xØ8 | L40: 50 | M40: 8 | N40: =IF(calcu!$I$35<=0,0,calcu!$I$35) ->  | O40: =IF(OR(I40=0,calcu!$U$35<=0),0,calcu!$U$35) ->  | R40: Schroef 300xØ6 | S40: 0 | T40: Schroef 280xØ8 | W40: Luchtdichte afdekprofielen | X40: =CEILING((H40*(SlimFix!$J$32/1000))+(I40*(SlimFix!$J$50/1000)),1) -> 0 | Y40: Door de tengel t.p.v. elke onderliggende gording/muurplaat: | Z40: 3 | AA40: Tussen de tengels t.p.v. de plaatvaste oplegging/muurplaat:
A41: SlimFix 8/8L | B41: 7.0 | C41: SlimFix 8/8L 7 | D41: 8 | E41: 20 | F41: Schroef 320xØ8 | G41: 50 | H41: =CEILING(SlimFix!$D$32*SlimFix!$J$44/1020,1) -> 0 | I41: =CEILING(SlimFix!$D$50*SlimFix!$J$57/1020,1) -> 0 | J41: =((H41*SlimFix!$D$35)+(I41*SlimFix!$D$52))*2 -> 0 | K41: Schroef 320xØ8 | L41: 50 | M41: 8 | N41: =IF(calcu!$I$35<=0,0,calcu!$I$35) ->  | O41: =IF(OR(I41=0,calcu!$U$35<=0),0,calcu!$U$35) ->  | T41: Schroef 320xØ8 | U41: =CEILING((P41+J41)/L41,1) ->  | V41: =CEILING((P41+J41)/100,1) ->  | W41: Luchtdichte afdekprofielen | X41: =CEILING((H41*(SlimFix!$J$32/1000))+(I41*(SlimFix!$J$50/1000)),1) -> 0 | Y41: Tussen de tengel t.p.v. elke onderliggende gording/muurplaat: | Z41: 2 | AA41: Tussen de tengels t.p.v. de plaatvaste oplegging/muurplaat:
A42: SlimFix Spoor | B42: 2.5 | C42: SlimFix Spoor 2,5 | F42: schroef 160xØ6 | G42: 100 | R42: schroef 160xØ6
A43: SlimFix Spoor | B43: 3.0 | C43: SlimFix Spoor 3 | F43: schroef 160xØ6 | G43: 100 | R43: schroef 160xØ6
A44: SlimFix Spoor | B44: 3.5 | C44: SlimFix Spoor 3,5 | F44: schroef 180xØ6 | G44: 100 | R44: schroef 180xØ6
A45: SlimFix Spoor | B45: 4.0 | C45: SlimFix Spoor 4 | F45: schroef 200xØ6 | G45: 100 | R45: schroef 200xØ6
A46: SlimFix Spoor | B46: 4.5 | C46: SlimFix Spoor 4,5 | F46: schroef 220xØ6 | G46: 100 | R46: schroef 220xØ6
A47: SlimFix Spoor | B47: 5.0 | C47: SlimFix Spoor 5 | F47: schroef 240xØ6 | G47: 100 | R47: schroef 240xØ6
A48: SlimFix Spoor | B48: 5.5 | C48: SlimFix Spoor 5,5 | F48: schroef 260xØ6 | G48: 100 | R48: schroef 260xØ6
A49: SlimFix Spoor | B49: 6.3 | C49: SlimFix Spoor 6,3 | F49: schroef 280xØ6 | G49: 100 | R49: schroef 280xØ6
A50: SlimFix Spoor | B50: 7.0 | C50: SlimFix Spoor 7 | F50: schroef 300xØ6 | G50: 100 | R50: schroef 300xØ6
A51: SlimFix-XT 3/3L | B51: 2.5 | C51: SlimFix-XT 3/3L 2,5 | D51: 3 | E51: 10.1 | F51: Schroef 160xØ6 | G51: 100 | H51: =CEILING(SlimFix!$D$32*SlimFix!$J$44/1020,1) -> 0 | I51: =CEILING(SlimFix!$D$50*SlimFix!$J$57/1020,1) -> 0 | J51: =((H51*SlimFix!$D$35)+(I51*SlimFix!$D$52))*3 -> 0 | K51: Schroef 160xØ6 | L51: 100 | M51: 6 | N51: =IF(calcu!$I$32<=0,0,calcu!$I$32) ->  | O51: =IF(OR(I51=0,calcu!$U$32<=0),0,calcu!$U$32) ->  | P51: =(H51*N51)+(I51*O51) ->  | R51: Schroef 160xØ6 | S51: =CEILING((J51+P51)/G51,1) ->  | V51: =CEILING(P51/100,1) ->  | W51: Luchtdichte afdekprofielen | X51: =CEILING((H51*(SlimFix!$J$32/1000))+(I51*(SlimFix!$J$50/1000)),1) -> 0 | Y51: Door de tengel t.p.v. elke onderliggende gording/muurplaat: | Z51: 3 | AA51: Tussen de tengels t.p.v. de plaatvaste oplegging/muurplaat:
A52: SlimFix-XT 3/3L | B52: 3.0 | C52: SlimFix-XT 3/3L 3 | D52: 3 | E52: 10.7 | F52: Schroef 180xØ6 | G52: 100 | H52: =CEILING(SlimFix!$D$32*SlimFix!$J$44/1020,1) -> 0 | I52: =CEILING(SlimFix!$D$50*SlimFix!$J$57/1020,1) -> 0 | J52: =((H52*SlimFix!$D$35)+(I52*SlimFix!$D$52))*3 -> 0 | K52: Schroef 180xØ6 | L52: 100 | M52: 6 | N52: =IF(calcu!$I$32<=0,0,calcu!$I$32) ->  | O52: =IF(OR(I52=0,calcu!$U$32<=0),0,calcu!$U$32) ->  | R52: Schroef 180xØ6 | S52: =CEILING((J52+P52)/G52,1) ->  | W52: Luchtdichte afdekprofielen | X52: =CEILING((H52*(SlimFix!$J$32/1000))+(I52*(SlimFix!$J$50/1000)),1) -> 0 | Y52: Door de tengel t.p.v. elke onderliggende gording/muurplaat: | Z52: 3 | AA52: Tussen de tengels t.p.v. de plaatvaste oplegging/muurplaat:
A53: SlimFix-XT 3/3L | B53: 3.5 | C53: =A53&" "&B53 -> SlimFix-XT 3/3L 3,5 | D53: 3 | E53: 11.4 | F53: Schroef 200xØ6 | G53: 100 | H53: =CEILING(SlimFix!$D$32*SlimFix!$J$44/1020,1) -> 0 | I53: =CEILING(SlimFix!$D$50*SlimFix!$J$57/1020,1) -> 0 | J53: =((H53*SlimFix!$D$35)+(I53*SlimFix!$D$52))*3 -> 0 | K53: Schroef 200xØ6 | L53: 100 | M53: 6 | N53: =IF(calcu!$I$32<=0,0,calcu!$I$32) ->  | O53: =IF(OR(I53=0,calcu!$U$32<=0),0,calcu!$U$32) ->  | P53: =(H53*N53)+(I53*O53) ->  | R53: Schroef 200xØ6 | V53: =CEILING(P53/100,1) ->  | W53: Luchtdichte afdekprofielen | X53: =CEILING((H53*(SlimFix!$J$32/1000))+(I53*(SlimFix!$J$50/1000)),1) -> 0 | Y53: Door de tengel t.p.v. elke onderliggende gording/muurplaat: | Z53: 3 | AA53: Tussen de tengels t.p.v. de plaatvaste oplegging/muurplaat:
A54: SlimFix-XT 3/3L | B54: 4.0 | C54: SlimFix-XT 3/3L 4 | D54: 3 | E54: 12.0 | F54: Schroef 220xØ6 | G54: 100 | H54: =CEILING(SlimFix!$D$32*SlimFix!$J$44/1020,1) -> 0 | I54: =CEILING(SlimFix!$D$50*SlimFix!$J$57/1020,1) -> 0 | J54: =((H54*SlimFix!$D$35)+(I54*SlimFix!$D$52))*3 -> 0 | K54: Schroef 220xØ6 | L54: 100 | M54: 6 | N54: =IF(calcu!$I$32<=0,0,calcu!$I$32) ->  | O54: =IF(OR(I54=0,calcu!$U$32<=0),0,calcu!$U$32) ->  | R54: Schroef 220xØ6 | W54: Luchtdichte afdekprofielen | X54: =CEILING((H54*(SlimFix!$J$32/1000))+(I54*(SlimFix!$J$50/1000)),1) -> 0 | Y54: Door de tengel t.p.v. elke onderliggende gording/muurplaat: | Z54: 3 | AA54: Tussen de tengels t.p.v. de plaatvaste oplegging/muurplaat:
A55: SlimFix-XT 3/3L | B55: 4.5 | C55: SlimFix-XT 3/3L 4,5 | D55: 3 | E55: 12.8 | F55: Schroef 240xØ6 | G55: 100 | H55: =CEILING(SlimFix!$D$32*SlimFix!$J$44/1020,1) -> 0 | I55: =CEILING(SlimFix!$D$50*SlimFix!$J$57/1020,1) -> 0 | J55: =((H55*SlimFix!$D$35)+(I55*SlimFix!$D$52))*3 -> 0 | K55: Schroef 240xØ6 | L55: 100 | M55: 6 | N55: =IF(calcu!$I$32<=0,0,calcu!$I$32) ->  | O55: =IF(OR(I55=0,calcu!$U$32<=0),0,calcu!$U$32) ->  | R55: Schroef 240xØ6 | W55: Luchtdichte afdekprofielen | X55: =CEILING((H55*(SlimFix!$J$32/1000))+(I55*(SlimFix!$J$50/1000)),1) -> 0 | Y55: Door de tengel t.p.v. elke onderliggende gording/muurplaat: | Z55: 3 | AA55: Tussen de tengels t.p.v. de plaatvaste oplegging/muurplaat:
A56: SlimFix-XT 3/3L | B56: 5.0 | C56: SlimFix-XT 3/3L 5 | D56: 3 | E56: 13.4 | F56: Schroef 260xØ6 | G56: 100 | H56: =CEILING(SlimFix!$D$32*SlimFix!$J$44/1020,1) -> 0 | I56: =CEILING(SlimFix!$D$50*SlimFix!$J$57/1020,1) -> 0 | J56: =((H56*SlimFix!$D$35)+(I56*SlimFix!$D$52))*3 -> 0 | K56: Schroef 260xØ6 | L56: 100 | M56: 6 | N56: =IF(calcu!$I$32<=0,0,calcu!$I$32) ->  | O56: =IF(OR(I56=0,calcu!$U$32<=0),0,calcu!$U$32) ->  | R56: Schroef 260xØ6 | W56: Luchtdichte afdekprofielen | X56: =CEILING((H56*(SlimFix!$J$32/1000))+(I56*(SlimFix!$J$50/1000)),1) -> 0 | Y56: Door de tengel t.p.v. elke onderliggende gording/muurplaat: | Z56: 3 | AA56: Tussen de tengels t.p.v. de plaatvaste oplegging/muurplaat:
A57: SlimFix-XT 3/3L | B57: 5.5 | C57: SlimFix-XT 3/3L 5,5 | D57: 3 | E57: 13.9 | F57: Schroef 260xØ6 | G57: 100 | H57: =CEILING(SlimFix!$D$32*SlimFix!$J$44/1020,1) -> 0 | I57: =CEILING(SlimFix!$D$50*SlimFix!$J$57/1020,1) -> 0 | J57: =((H57*SlimFix!$D$35)+(I57*SlimFix!$D$52))*3 -> 0 | K57: Schroef 260xØ6 | L57: 100 | M57: 6 | N57: =IF(calcu!$I$32<=0,0,calcu!$I$32) ->  | O57: =IF(OR(I57=0,calcu!$U$32<=0),0,calcu!$U$32) ->  | R57: Schroef 260xØ6 | W57: Luchtdichte afdekprofielen | X57: =CEILING((H57*(SlimFix!$J$32/1000))+(I57*(SlimFix!$J$50/1000)),1) -> 0 | Y57: Door de tengel t.p.v. elke onderliggende gording/muurplaat: | Z57: 3 | AA57: Tussen de tengels t.p.v. de plaatvaste oplegging/muurplaat:
A58: SlimFix-XT 3/3L | B58: 6.3 | C58: SlimFix-XT 3/3L 6,3 | D58: 3 | E58: 15.0 | F58: Schroef 300xØ6 | G58: 100 | H58: =CEILING(SlimFix!$D$32*SlimFix!$J$44/1020,1) -> 0 | I58: =CEILING(SlimFix!$D$50*SlimFix!$J$57/1020,1) -> 0 | J58: =((H58*SlimFix!$D$35)+(I58*SlimFix!$D$52))*3 -> 0 | K58: Schroef 300xØ6 | L58: 100 | M58: 6 | N58: =IF(calcu!$I$32<=0,0,calcu!$I$32) ->  | O58: =IF(OR(I58=0,calcu!$U$32<=0),0,calcu!$U$32) ->  | R58: Schroef 300xØ6 | W58: Luchtdichte afdekprofielen | X58: =CEILING((H58*(SlimFix!$J$32/1000))+(I58*(SlimFix!$J$50/1000)),1) -> 0 | Y58: Door de tengel t.p.v. elke onderliggende gording/muurplaat: | Z58: 3 | AA58: Tussen de tengels t.p.v. de plaatvaste oplegging/muurplaat:
A59: SlimFix-XT 3/3L | B59: 7.0 | C59: SlimFix-XT 3/3L 7 | D59: 3 | E59: 16.0 | F59: Schroef 300xØ6 | G59: 100 | H59: =CEILING(SlimFix!$D$32*SlimFix!$J$44/1020,1) -> 0 | I59: =CEILING(SlimFix!$D$50*SlimFix!$J$57/1020,1) -> 0 | J59: =((H59*SlimFix!$D$35)+(I59*SlimFix!$D$52))*2 -> 0 | K59: Schroef 300xØ6 | L59: 100 | M59: 6 | N59: =IF(calcu!$I$32<=0,0,calcu!$I$32+1) ->  | O59: =IF(OR(I59=0,calcu!$U$32<=0),0,calcu!$U$32+1) ->  | T59: =K59 -> Schroef 300xØ6 | U59: =CEILING((P59+J59)/L59,1) ->  | V59: =CEILING((P59+J59)/100,1) ->  | W59: Luchtdichte afdekprofielen | X59: =CEILING((H59*(SlimFix!$J$32/1000))+(I59*(SlimFix!$J$50/1000)),1) -> 0 | Y59: Tussen de tengel t.p.v. elke onderliggende gording/muurplaat: | Z59: 2 | AA59: Tussen de tengels t.p.v. de plaatvaste oplegging/muurplaat:
A60: SlimFix-XT 3/3R | B60: 2.5 | C60: SlimFix-XT 3/3R 2,5 | D60: 3 | E60: 8.6 | F60: Schroef 160xØ6 | G60: 100 | H60: =CEILING(SlimFix!$D$32*SlimFix!$J$44/1020,1) -> 0 | I60: =CEILING(SlimFix!$D$50*SlimFix!$J$57/1020,1) -> 0 | J60: =((H60*SlimFix!$D$35)+(I60*SlimFix!$D$52))*3 -> 0 | K60: Schroef 160xØ6 | L60: 100 | M60: 6 | N60: =IF(calcu!$I$42<=0,0,calcu!$I$42) ->  | O60: =IF(calcu!$U$42<=0,0,calcu!$U$42) ->  | R60: Schroef 160xØ6 | S60: =CEILING((J60+P60)/G60,1) ->  | V60: =CEILING(P60/100,1) ->  | W60: Luchtdichte afdekprofielen | X60: =CEILING((H60*(SlimFix!$J$32/1000))+(I60*(SlimFix!$J$50/1000)),1) -> 0 | Y60: Door de tengel t.p.v. elke onderliggende gording/muurplaat: | Z60: 3 | AA60: =IF(P60=0," ","Tussen de tengels t.p.v. muurplaat:") -> 
A61: SlimFix-XT 3/3R | B61: 3.0 | C61: SlimFix-XT 3/3R 3 | D61: 3 | E61: 8.9 | F61: Schroef 160xØ6 | G61: 100 | H61: =CEILING(SlimFix!$D$32*SlimFix!$J$44/1020,1) -> 0 | I61: =CEILING(SlimFix!$D$50*SlimFix!$J$57/1020,1) -> 0 | J61: =((H61*SlimFix!$D$35)+(I61*SlimFix!$D$52))*3 -> 0 | K61: Schroef 160xØ6 | L61: 100 | M61: 6 | N61: =IF(calcu!$I$42<=0,0,calcu!$I$42) ->  | O61: =IF(calcu!$U$42<=0,0,calcu!$U$42) ->  | R61: Schroef 160xØ6 | S61: =CEILING((J61+P61)/G61,1) ->  | W61: Luchtdichte afdekprofielen | X61: =CEILING((H61*(SlimFix!$J$32/1000))+(I61*(SlimFix!$J$50/1000)),1) -> 0 | Y61: Door de tengel t.p.v. elke onderliggende gording/muurplaat: | Z61: 3
A62: SlimFix-XT 3/3R | B62: 3.5 | C62: SlimFix-XT 3/3R 3,5 | D62: 3 | E62: 9.2 | F62: Schroef 180xØ6 | G62: 100 | H62: =CEILING(SlimFix!$D$32*SlimFix!$J$44/1020,1) -> 0 | I62: =CEILING(SlimFix!$D$50*SlimFix!$J$57/1020,1) -> 0 | J62: =((H62*SlimFix!$D$35)+(I62*SlimFix!$D$52))*3 -> 0 | K62: Schroef 180xØ6 | L62: 100 | M62: 6 | N62: =IF(calcu!$I$42<=0,0,calcu!$I$42) ->  | O62: =IF(calcu!$U$42<=0,0,calcu!$U$42) ->  | P62: =(H62*N62)+(I62*O62) ->  | R62: Schroef 180xØ6 | S62: =CEILING((J62+P62)/G62,1) ->  | V62: =CEILING(P62/100,1) ->  | W62: Luchtdichte afdekprofielen | X62: =CEILING((H62*(SlimFix!$J$32/1000))+(I62*(SlimFix!$J$50/1000)),1) -> 0 | Y62: Door de tengel t.p.v. elke onderliggende gording/muurplaat: | Z62: 3 | AA62: =IF(P62=0," ","Tussen de tengels t.p.v. muurplaat:") -> 
A63: SlimFix-XT 3/3R | B63: 4.0 | C63: SlimFix-XT 3/3R 4 | D63: 3 | E63: 9.5 | F63: Schroef 200xØ6 | G63: 100 | H63: =CEILING(SlimFix!$D$32*SlimFix!$J$44/1020,1) -> 0 | I63: =CEILING(SlimFix!$D$50*SlimFix!$J$57/1020,1) -> 0 | J63: =((H63*SlimFix!$D$35)+(I63*SlimFix!$D$52))*3 -> 0 | K63: Schroef 200xØ6 | L63: 100 | M63: 6 | N63: =IF(calcu!$I$42<=0,0,calcu!$I$42) ->  | O63: =IF(calcu!$U$42<=0,0,calcu!$U$42) ->  | R63: Schroef 200xØ6 | S63: =CEILING((J63+P63)/G63,1) ->  | W63: Luchtdichte afdekprofielen | X63: =CEILING((H63*(SlimFix!$J$32/1000))+(I63*(SlimFix!$J$50/1000)),1) -> 0 | Y63: Door de tengel t.p.v. elke onderliggende gording/muurplaat: | Z63: 3
A64: SlimFix-XT 3/3R | B64: 4.5 | C64: SlimFix-XT 3/3R 4,5 | D64: 3 | E64: 9.7 | F64: Schroef 220xØ6 | G64: 100 | H64: =CEILING(SlimFix!$D$32*SlimFix!$J$44/1020,1) -> 0 | I64: =CEILING(SlimFix!$D$50*SlimFix!$J$57/1020,1) -> 0 | J64: =((H64*SlimFix!$D$35)+(I64*SlimFix!$D$52))*3 -> 0 | K64: Schroef 220xØ6 | L64: 100 | M64: 6 | N64: =IF(calcu!$I$42<=0,0,calcu!$I$42) ->  | O64: =IF(calcu!$U$42<=0,0,calcu!$U$42) ->  | R64: Schroef 220xØ6 | W64: Luchtdichte afdekprofielen | X64: =CEILING((H64*(SlimFix!$J$32/1000))+(I64*(SlimFix!$J$50/1000)),1) -> 0 | Y64: Door de tengel t.p.v. elke onderliggende gording/muurplaat: | Z64: 3
A65: SlimFix-XT 3/3R | B65: 5.0 | C65: SlimFix-XT 3/3R 5 | D65: 3 | E65: 10.0 | F65: Schroef 240xØ6 | G65: 100 | H65: =CEILING(SlimFix!$D$32*SlimFix!$J$44/1020,1) -> 0 | I65: =CEILING(SlimFix!$D$50*SlimFix!$J$57/1020,1) -> 0 | J65: =((H65*SlimFix!$D$35)+(I65*SlimFix!$D$52))*3 -> 0 | K65: Schroef 240xØ6 | L65: 100 | M65: 6 | N65: =IF(calcu!$I$42<=0,0,calcu!$I$42) ->  | O65: =IF(calcu!$U$42<=0,0,calcu!$U$42) ->  | R65: Schroef 240xØ6 | W65: Luchtdichte afdekprofielen | X65: =CEILING((H65*(SlimFix!$J$32/1000))+(I65*(SlimFix!$J$50/1000)),1) -> 0 | Y65: Door de tengel t.p.v. elke onderliggende gording/muurplaat: | Z65: 3
A66: SlimFix-XT 3/3R | B66: 5.5 | C66: SlimFix-XT 3/3R 5,5 | D66: 3 | E66: 10.3 | F66: Schroef 240xØ6 | G66: 100 | H66: =CEILING(SlimFix!$D$32*SlimFix!$J$44/1020,1) -> 0 | I66: =CEILING(SlimFix!$D$50*SlimFix!$J$57/1020,1) -> 0 | J66: =((H66*SlimFix!$D$35)+(I66*SlimFix!$D$52))*3 -> 0 | K66: Schroef 240xØ6 | L66: 100 | M66: 6 | N66: =IF(calcu!$I$42<=0,0,calcu!$I$42) ->  | O66: =IF(calcu!$U$42<=0,0,calcu!$U$42) ->  | R66: Schroef 240xØ6 | W66: Luchtdichte afdekprofielen | X66: =CEILING((H66*(SlimFix!$J$32/1000))+(I66*(SlimFix!$J$50/1000)),1) -> 0 | Y66: Door de tengel t.p.v. elke onderliggende gording/muurplaat: | Z66: 3
A67: SlimFix-XT 3/3R | B67: 6.3 | C67: =A67&" "&B67 -> SlimFix-XT 3/3R 6,3 | D67: 3 | E67: 10.7 | F67: Schroef 280xØ6 | G67: 100 | H67: =CEILING(SlimFix!$D$32*SlimFix!$J$44/1020,1) -> 0 | I67: =CEILING(SlimFix!$D$50*SlimFix!$J$57/1020,1) -> 0 | J67: =((H67*SlimFix!$D$35)+(I67*SlimFix!$D$52))*3 -> 0 | K67: Schroef 280xØ6 | L67: 100 | M67: 6 | N67: =IF(calcu!$I$42<=0,0,calcu!$I$42) ->  | O67: =IF(calcu!$U$42<=0,0,calcu!$U$42) ->  | R67: Schroef 280xØ6 | W67: Luchtdichte afdekprofielen | X67: =CEILING((H67*(SlimFix!$J$32/1000))+(I67*(SlimFix!$J$50/1000)),1) -> 0 | Y67: Door de tengel t.p.v. elke onderliggende gording/muurplaat: | Z67: 3
A68: SlimFix-XT 3/3R | B68: 7.0 | C68: SlimFix-XT 3/3R 7 | D68: 3 | E68: 11.1 | F68: Schroef 300xØ6 | G68: 100 | H68: =CEILING(SlimFix!$D$32*SlimFix!$J$44/1020,1) -> 0 | I68: =CEILING(SlimFix!$D$50*SlimFix!$J$57/1020,1) -> 0 | J68: =((H68*SlimFix!$D$35)+(I68*SlimFix!$D$52))*3 -> 0 | K68: Schroef 300xØ6 | L68: 100 | M68: 6 | N68: =IF(calcu!$I$42<=0,0,calcu!$I$42) ->  | O68: =IF(calcu!$U$42<=0,0,calcu!$U$42) ->  | R68: Schroef 300xØ6 | W68: Luchtdichte afdekprofielen | X68: =CEILING((H68*(SlimFix!$J$32/1000))+(I68*(SlimFix!$J$50/1000)),1) -> 0 | Y68: Door de tengel t.p.v. elke onderliggende gording/muurplaat: | Z68: 3
A69: SlimFix-XT 8/8L | B69: 2.5 | C69: SlimFix-XT 8/8L 2,5 | D69: 8 | E69: 17.2 | F69: Schroef 160xØ6 | G69: 100 | H69: =CEILING(SlimFix!$D$32*SlimFix!$J$44/1020,1) -> 0 | I69: =CEILING(SlimFix!$D$50*SlimFix!$J$57/1020,1) -> 0 | J69: =((H69*SlimFix!$D$35)+(I69*SlimFix!$D$52))*3 -> 0 | K69: Schroef 160xØ6 | L69: 100 | M69: 6 | N69: =IF(calcu!$I$34<=0,0,calcu!$I$34) ->  | O69: =IF(OR(I69=0,calcu!$U$34<=0),0,calcu!$U$34) ->  | R69: Schroef 160xØ6 | W69: Luchtdichte afdekprofielen | X69: =CEILING((H69*(SlimFix!$J$32/1000))+(I69*(SlimFix!$J$50/1000)),1) -> 0 | Y69: Door de tengel t.p.v. elke onderliggende gording/muurplaat: | Z69: 3 | AA69: Tussen de tengels t.p.v. de plaatvaste oplegging/muurplaat:
A70: SlimFix-XT 8/8L | B70: 3.0 | C70: SlimFix-XT 8/8L 3 | D70: 8 | E70: 17.8 | F70: Schroef 180xØ6 | G70: 100 | H70: =CEILING(SlimFix!$D$32*SlimFix!$J$44/1020,1) -> 0 | I70: =CEILING(SlimFix!$D$50*SlimFix!$J$57/1020,1) -> 0 | J70: =((H70*SlimFix!$D$35)+(I70*SlimFix!$D$52))*3 -> 0 | K70: Schroef 180xØ6 | L70: 100 | M70: 6 | N70: =IF(calcu!$I$34<=0,0,calcu!$I$34) ->  | O70: =IF(OR(I70=0,calcu!$U$34<=0),0,calcu!$U$34) ->  | R70: Schroef 180xØ6 | W70: Luchtdichte afdekprofielen | X70: =CEILING((H70*(SlimFix!$J$32/1000))+(I70*(SlimFix!$J$50/1000)),1) -> 0 | Y70: Door de tengel t.p.v. elke onderliggende gording/muurplaat: | Z70: 3 | AA70: Tussen de tengels t.p.v. de plaatvaste oplegging/muurplaat:
A71: SlimFix-XT 8/8L | B71: 3.5 | C71: =A71&" "&B71 -> SlimFix-XT 8/8L 3,5 | D71: 8 | E71: 18.6 | F71: Schroef 200xØ6 | G71: 100 | H71: =CEILING(SlimFix!$D$32*SlimFix!$J$44/1020,1) -> 0 | I71: =CEILING(SlimFix!$D$50*SlimFix!$J$57/1020,1) -> 0 | J71: =((H71*SlimFix!$D$35)+(I71*SlimFix!$D$52))*3 -> 0 | K71: Schroef 200xØ6 | L71: 100 | M71: 6 | N71: =IF(calcu!$I$34<=0,0,calcu!$I$34) ->  | O71: =IF(OR(I71=0,calcu!$U$34<=0),0,calcu!$U$34) ->  | P71: =(H71*N71)+(I71*O71) ->  | R71: Schroef 200xØ6 | V71: =CEILING(P71/100,1) ->  | W71: Luchtdichte afdekprofielen | X71: =CEILING((H71*(SlimFix!$J$32/1000))+(I71*(SlimFix!$J$50/1000)),1) -> 0 | Y71: Door de tengel t.p.v. elke onderliggende gording/muurplaat: | Z71: 3 | AA71: Tussen de tengels t.p.v. de plaatvaste oplegging/muurplaat:
A72: SlimFix-XT 8/8L | B72: 4.0 | C72: SlimFix-XT 8/8L 4 | D72: 8 | E72: 19.2 | F72: Schroef 220xØ6 | G72: 100 | H72: =CEILING(SlimFix!$D$32*SlimFix!$J$44/1020,1) -> 0 | I72: =CEILING(SlimFix!$D$50*SlimFix!$J$57/1020,1) -> 0 | J72: =((H72*SlimFix!$D$35)+(I72*SlimFix!$D$52))*3 -> 0 | K72: Schroef 220xØ6 | L72: 100 | M72: 6 | N72: =IF(calcu!$I$34<=0,0,calcu!$I$34) ->  | O72: =IF(OR(I72=0,calcu!$U$34<=0),0,calcu!$U$34) ->  | R72: Schroef 220xØ6 | W72: Luchtdichte afdekprofielen | X72: =CEILING((H72*(SlimFix!$J$32/1000))+(I72*(SlimFix!$J$50/1000)),1) -> 0 | Y72: Door de tengel t.p.v. elke onderliggende gording/muurplaat: | Z72: 3 | AA72: Tussen de tengels t.p.v. de plaatvaste oplegging/muurplaat:
A73: SlimFix-XT 8/8L | B73: 4.5 | C73: SlimFix-XT 8/8L 4,5 | D73: 8 | E73: 20.0 | F73: Schroef 240xØ6 | G73: 100 | H73: =CEILING(SlimFix!$D$32*SlimFix!$J$44/1020,1) -> 0 | I73: =CEILING(SlimFix!$D$50*SlimFix!$J$57/1020,1) -> 0 | J73: =((H73*SlimFix!$D$35)+(I73*SlimFix!$D$52))*3 -> 0 | K73: Schroef 240xØ6 | L73: 100 | M73: 6 | N73: =IF(calcu!$I$34<=0,0,calcu!$I$34) ->  | O73: =IF(OR(I73=0,calcu!$U$34<=0),0,calcu!$U$34) ->  | R73: Schroef 240xØ6 | W73: Luchtdichte afdekprofielen | X73: =CEILING((H73*(SlimFix!$J$32/1000))+(I73*(SlimFix!$J$50/1000)),1) -> 0 | Y73: Door de tengel t.p.v. elke onderliggende gording/muurplaat: | Z73: 3 | AA73: Tussen de tengels t.p.v. de plaatvaste oplegging/muurplaat:
A74: SlimFix-XT 8/8L | B74: 5.0 | C74: SlimFix-XT 8/8L 5 | D74: 8 | E74: 20.6 | F74: Schroef 260xØ6 | G74: 100 | H74: =CEILING(SlimFix!$D$32*SlimFix!$J$44/1020,1) -> 0 | I74: =CEILING(SlimFix!$D$50*SlimFix!$J$57/1020,1) -> 0 | J74: =((H74*SlimFix!$D$35)+(I74*SlimFix!$D$52))*3 -> 0 | K74: Schroef 260xØ6 | L74: 100 | M74: 6 | N74: =IF(calcu!$I$34<=0,0,calcu!$I$34) ->  | O74: =IF(OR(I74=0,calcu!$U$34<=0),0,calcu!$U$34) ->  | R74: Schroef 260xØ6 | W74: Luchtdichte afdekprofielen | X74: =CEILING((H74*(SlimFix!$J$32/1000))+(I74*(SlimFix!$J$50/1000)),1) -> 0 | Y74: Door de tengel t.p.v. elke onderliggende gording/muurplaat: | Z74: 3 | AA74: Tussen de tengels t.p.v. de plaatvaste oplegging/muurplaat:
A75: SlimFix-XT 8/8L | B75: 5.5 | C75: SlimFix-XT 8/8L 5,5 | D75: 8 | E75: 21.1 | F75: Schroef 280xØ6 | G75: 100 | H75: =CEILING(SlimFix!$D$32*SlimFix!$J$44/1020,1) -> 0 | I75: =CEILING(SlimFix!$D$50*SlimFix!$J$57/1020,1) -> 0 | J75: =((H75*SlimFix!$D$35)+(I75*SlimFix!$D$52))*3 -> 0 | K75: Schroef 280xØ6 | L75: 100 | M75: 6 | N75: =IF(calcu!$I$34<=0,0,calcu!$I$34) ->  | O75: =IF(OR(I75=0,calcu!$U$34<=0),0,calcu!$U$34) ->  | R75: Schroef 280xØ6 | W75: Luchtdichte afdekprofielen | X75: =CEILING((H75*(SlimFix!$J$32/1000))+(I75*(SlimFix!$J$50/1000)),1) -> 0 | Y75: Door de tengel t.p.v. elke onderliggende gording/muurplaat: | Z75: 3 | AA75: Tussen de tengels t.p.v. de plaatvaste oplegging/muurplaat:
A76: SlimFix-XT 8/8L | B76: 6.3 | C76: SlimFix-XT 8/8L 6,3 | D76: 8 | E76: 22.2 | F76: Schroef 300xØ6 | G76: 100 | H76: =CEILING(SlimFix!$D$32*SlimFix!$J$44/1020,1) -> 0 | I76: =CEILING(SlimFix!$D$50*SlimFix!$J$57/1020,1) -> 0 | J76: =((H76*SlimFix!$D$35)+(I76*SlimFix!$D$52))*3 -> 0 | K76: Schroef 300xØ6 | L76: 100 | M76: 6 | N76: =IF(calcu!$I$34<=0,0,calcu!$I$34) ->  | O76: =IF(OR(I76=0,calcu!$U$34<=0),0,calcu!$U$34) ->  | R76: Schroef 300xØ6 | W76: Luchtdichte afdekprofielen | X76: =CEILING((H76*(SlimFix!$J$32/1000))+(I76*(SlimFix!$J$50/1000)),1) -> 0 | Y76: Door de tengel t.p.v. elke onderliggende gording/muurplaat: | Z76: 3 | AA76: Tussen de tengels t.p.v. de plaatvaste oplegging/muurplaat:
A77: SlimFix-XT 8/8L | B77: 7.0 | C77: SlimFix-XT 8/8L 7 | D77: 8 | E77: 23.1 | F77: Schroef 300xØ6 | G77: 100 | H77: =CEILING(SlimFix!$D$32*SlimFix!$J$44/1020,1) -> 0 | I77: =CEILING(SlimFix!$D$50*SlimFix!$J$57/1020,1) -> 0 | J77: =((H77*SlimFix!$D$35)+(I77*SlimFix!$D$52))*2 -> 0 | K77: Schroef 300xØ6 | L77: 100 | M77: 6 | N77: =IF(calcu!$I$34<=0,0,calcu!$I$34+1) ->  | O77: =IF(OR(I77=0,calcu!$U$34<=0),0,calcu!$U$34+1) ->  | R77: Schroef 300xØ6 | T77: =K77 -> Schroef 300xØ6 | U77: =CEILING((P77+J77)/L77,1) ->  | V77: =CEILING((P77+J77)/100,1) ->  | W77: Luchtdichte afdekprofielen | X77: =CEILING((H77*(SlimFix!$J$32/1000))+(I77*(SlimFix!$J$50/1000)),1) -> 0 | Y77: Tussen de tengel t.p.v. elke onderliggende gording/muurplaat: | Z77: 2 | AA77: Tussen de tengels t.p.v. de plaatvaste oplegging/muurplaat:
A78: SlimFix-XT 8/8R | B78: 2.5 | C78: SlimFix-XT 8/8R 2,5 | D78: 8 | E78: 15.8 | F78: Schroef 160xØ6 | G78: 100 | H78: =CEILING(SlimFix!$D$32*SlimFix!$J$44/1020,1) -> 0 | I78: =CEILING(SlimFix!$D$50*SlimFix!$J$57/1020,1) -> 0 | J78: =((H78*SlimFix!$D$35)+(I78*SlimFix!$D$52))*3 -> 0 | K78: Schroef 160xØ6 | L78: 100 | M78: 6 | N78: =IF(calcu!$I$43<=0,0,calcu!$I$43) ->  | O78: =IF(calcu!$U$43<=0,0,calcu!$U$43) ->  | R78: Schroef 160xØ6 | S78: =CEILING((J78+P78)/G78,1) ->  | V78: =CEILING(P78/100,1) ->  | W78: Luchtdichte afdekprofielen | X78: =CEILING((H78*(SlimFix!$J$32/1000))+(I78*(SlimFix!$J$50/1000)),1) -> 0 | Y78: Door de tengel t.p.v. elke onderliggende gording/muurplaat: | Z78: 3 | AA78: =IF(P78=0," ","Tussen de tengels t.p.v. muurplaat:") -> 
A79: SlimFix-XT 8/8R | B79: 3.0 | C79: SlimFix-XT 8/8R 3 | D79: 8 | E79: 16.1 | F79: Schroef 180xØ6 | G79: 100 | H79: =CEILING(SlimFix!$D$32*SlimFix!$J$44/1020,1) -> 0 | I79: =CEILING(SlimFix!$D$50*SlimFix!$J$57/1020,1) -> 0 | J79: =((H79*SlimFix!$D$35)+(I79*SlimFix!$D$52))*3 -> 0 | K79: Schroef 180xØ6 | L79: 100 | M79: 6 | N79: =IF(calcu!$I$43<=0,0,calcu!$I$43) ->  | O79: =IF(calcu!$U$43<=0,0,calcu!$U$43) ->  | R79: Schroef 180xØ6 | W79: Luchtdichte afdekprofielen | X79: =CEILING((H79*(SlimFix!$J$32/1000))+(I79*(SlimFix!$J$50/1000)),1) -> 0 | Y79: Door de tengel t.p.v. elke onderliggende gording/muurplaat: | Z79: 3
A80: SlimFix-XT 8/8R | B80: 3.5 | C80: SlimFix-XT 8/8R 3,5 | D80: 8 | E80: 16.4 | F80: Schroef 200xØ6 | G80: 100 | H80: =CEILING(SlimFix!$D$32*SlimFix!$J$44/1020,1) -> 0 | I80: =CEILING(SlimFix!$D$50*SlimFix!$J$57/1020,1) -> 0 | J80: =((H80*SlimFix!$D$35)+(I80*SlimFix!$D$52))*3 -> 0 | K80: Schroef 200xØ6 | L80: 100 | M80: 6 | N80: =IF(calcu!$I$43<=0,0,calcu!$I$43) ->  | O80: =IF(calcu!$U$43<=0,0,calcu!$U$43) ->  | R80: Schroef 200xØ6 | W80: Luchtdichte afdekprofielen | X80: =CEILING((H80*(SlimFix!$J$32/1000))+(I80*(SlimFix!$J$50/1000)),1) -> 0 | Y80: Door de tengel t.p.v. elke onderliggende gording/muurplaat: | Z80: 3 | AA80: =IF(P80=0," ","Tussen de tengels t.p.v. muurplaat:") -> 
A81: SlimFix-XT 8/8R | B81: 4.0 | C81: SlimFix-XT 8/8R 4 | D81: 8 | E81: 16.7 | F81: Schroef 220xØ6 | G81: 100 | H81: =CEILING(SlimFix!$D$32*SlimFix!$J$44/1020,1) -> 0 | I81: =CEILING(SlimFix!$D$50*SlimFix!$J$57/1020,1) -> 0 | J81: =((H81*SlimFix!$D$35)+(I81*SlimFix!$D$52))*3 -> 0 | K81: Schroef 220xØ6 | L81: 100 | M81: 6 | N81: =IF(calcu!$I$43<=0,0,calcu!$I$43) ->  | O81: =IF(calcu!$U$43<=0,0,calcu!$U$43) ->  | R81: Schroef 220xØ6 | W81: Luchtdichte afdekprofielen | X81: =CEILING((H81*(SlimFix!$J$32/1000))+(I81*(SlimFix!$J$50/1000)),1) -> 0 | Y81: Door de tengel t.p.v. elke onderliggende gording/muurplaat: | Z81: 3
A82: SlimFix-XT 8/8R | B82: 4.5 | C82: SlimFix-XT 8/8R 4,5 | D82: 8 | E82: 16.9 | F82: Schroef 220xØ6 | G82: 100 | H82: =CEILING(SlimFix!$D$32*SlimFix!$J$44/1020,1) -> 0 | I82: =CEILING(SlimFix!$D$50*SlimFix!$J$57/1020,1) -> 0 | J82: =((H82*SlimFix!$D$35)+(I82*SlimFix!$D$52))*3 -> 0 | K82: Schroef 220xØ6 | L82: 100 | M82: 6 | N82: =IF(calcu!$I$43<=0,0,calcu!$I$43) ->  | O82: =IF(calcu!$U$43<=0,0,calcu!$U$43) ->  | R82: Schroef 220xØ6 | W82: Luchtdichte afdekprofielen | X82: =CEILING((H82*(SlimFix!$J$32/1000))+(I82*(SlimFix!$J$50/1000)),1) -> 0 | Y82: Door de tengel t.p.v. elke onderliggende gording/muurplaat: | Z82: 3
A83: SlimFix-XT 8/8R | B83: 5.0 | C83: SlimFix-XT 8/8R 5 | D83: 8 | E83: 17.2 | F83: Schroef 240xØ6 | G83: 100 | H83: =CEILING(SlimFix!$D$32*SlimFix!$J$44/1020,1) -> 0 | I83: =CEILING(SlimFix!$D$50*SlimFix!$J$57/1020,1) -> 0 | J83: =((H83*SlimFix!$D$35)+(I83*SlimFix!$D$52))*3 -> 0 | K83: Schroef 240xØ6 | L83: 100 | M83: 6 | N83: =IF(calcu!$I$43<=0,0,calcu!$I$43) ->  | O83: =IF(calcu!$U$43<=0,0,calcu!$U$43) ->  | R83: Schroef 240xØ6 | W83: Luchtdichte afdekprofielen | X83: =CEILING((H83*(SlimFix!$J$32/1000))+(I83*(SlimFix!$J$50/1000)),1) -> 0 | Y83: Door de tengel t.p.v. elke onderliggende gording/muurplaat: | Z83: 3
A84: SlimFix-XT 8/8R | B84: 5.5 | C84: SlimFix-XT 8/8R 5,5 | D84: 8 | E84: 17.5 | F84: Schroef 260xØ6 | G84: 100 | H84: =CEILING(SlimFix!$D$32*SlimFix!$J$44/1020,1) -> 0 | I84: =CEILING(SlimFix!$D$50*SlimFix!$J$57/1020,1) -> 0 | J84: =((H84*SlimFix!$D$35)+(I84*SlimFix!$D$52))*3 -> 0 | K84: Schroef 260xØ6 | L84: 100 | M84: 6 | N84: =IF(calcu!$I$43<=0,0,calcu!$I$43) ->  | O84: =IF(calcu!$U$43<=0,0,calcu!$U$43) ->  | R84: Schroef 260xØ6 | W84: Luchtdichte afdekprofielen | X84: =CEILING((H84*(SlimFix!$J$32/1000))+(I84*(SlimFix!$J$50/1000)),1) -> 0 | Y84: Door de tengel t.p.v. elke onderliggende gording/muurplaat: | Z84: 3
A85: SlimFix-XT 8/8R | B85: 6.3 | C85: SlimFix-XT 8/8R 6,3 | D85: 8 | E85: 17.9 | F85: Schroef 280xØ6 | G85: 100 | H85: =CEILING(SlimFix!$D$32*SlimFix!$J$44/1020,1) -> 0 | I85: =CEILING(SlimFix!$D$50*SlimFix!$J$57/1020,1) -> 0 | J85: =((H85*SlimFix!$D$35)+(I85*SlimFix!$D$52))*3 -> 0 | K85: Schroef 280xØ6 | L85: 100 | M85: 6 | N85: =IF(calcu!$I$43<=0,0,calcu!$I$43) ->  | O85: =IF(calcu!$U$43<=0,0,calcu!$U$43) ->  | R85: Schroef 280xØ6 | W85: Luchtdichte afdekprofielen | X85: =CEILING((H85*(SlimFix!$J$32/1000))+(I85*(SlimFix!$J$50/1000)),1) -> 0 | Y85: Door de tengel t.p.v. elke onderliggende gording/muurplaat: | Z85: 3
A86: SlimFix-XT 8/8R | B86: 7.0 | C86: SlimFix-XT 8/8R 7 | D86: 8 | E86: 18.3 | F86: Schroef 300xØ6 | G86: 100 | H86: =CEILING(SlimFix!$D$32*SlimFix!$J$44/1020,1) -> 0 | I86: =CEILING(SlimFix!$D$50*SlimFix!$J$57/1020,1) -> 0 | J86: =((H86*SlimFix!$D$35)+(I86*SlimFix!$D$52))*3 -> 0 | K86: Schroef 300xØ6 | L86: 100 | M86: 6 | N86: =IF(calcu!$I$43<=0,0,calcu!$I$43) ->  | O86: =IF(calcu!$U$43<=0,0,calcu!$U$43) ->  | R86: Schroef 300xØ6 | W86: Luchtdichte afdekprofielen | X86: =CEILING((H86*(SlimFix!$J$32/1000))+(I86*(SlimFix!$J$50/1000)),1) -> 0 | Y86: Door de tengel t.p.v. elke onderliggende gording/muurplaat: | Z86: 3
A87: SlimFix-XT Passief | B87: 10.0 | C87: SlimFix-XT Passief 10 | D87: 8 | E87: 33 | F87: Schroef 400xØ8 | G87: 50 | H87: =CEILING(SlimFix!$D$32*SlimFix!$J$44/1020,1) -> 0 | I87: =CEILING(SlimFix!$D$50*SlimFix!$J$57/1020,1) -> 0 | J87: =((H87*SlimFix!$D$35)+(I87*SlimFix!$D$52))*2 -> 0 | K87: Schroef 400xØ8 | L87: 50 | M87: 8 | N87: =IF(calcu!$I$35<=0,0,calcu!$I$35) ->  | O87: =IF(OR(I87=0,calcu!$U$35<=0),0,calcu!$U$35) ->  | P87: =(H87*N87)+(I87*O87) ->  | T87: =K87 -> Schroef 400xØ8 | U87: =CEILING((P87+J87)/L87,1) ->  | V87: =CEILING((P87+J87)/100,1) ->  | W87: Luchtdichte afdekprofielen | X87: =CEILING((H87*(SlimFix!$J$32/1000))+(I87*(SlimFix!$J$50/1000)),1) -> 0 | Y87: Tussen de tengel t.p.v. elke onderliggende gording/muurplaat: | Z87: 2 | AA87: Tussen de tengels t.p.v. de plaatvaste oplegging/muurplaat:
A88: SlimFix-XT Passief | B88: 9.0 | C88: =A88&" "&B88 -> SlimFix-XT Passief 9 | D88: 8 | E88: 32.5 | F88: Schroef 380xØ8 | G88: 50 | H88: =CEILING(SlimFix!$D$32*SlimFix!$J$44/1020,1) -> 0 | I88: =CEILING(SlimFix!$D$50*SlimFix!$J$57/1020,1) -> 0 | J88: =((H88*SlimFix!$D$35)+(I88*SlimFix!$D$52))*2 -> 0 | K88: Schroef 380xØ8 | L88: 50 | M88: 8 | N88: =IF(calcu!$I$35<=0,0,calcu!$I$35) ->  | O88: =IF(OR(I88=0,calcu!$U$35<=0),0,calcu!$U$35) ->  | P88: =(H88*N88)+(I88*O88) ->  | T88: =K88 -> Schroef 380xØ8 | U88: =CEILING((P88+J88)/L88,1) ->  | V88: =CEILING((P88+J88)/100,1) ->  | W88: Luchtdichte afdekprofielen | X88: =CEILING((H88*(SlimFix!$J$32/1000))+(I88*(SlimFix!$J$50/1000)),1) -> 0 | Y88: Tussen de tengel t.p.v. elke onderliggende gording/muurplaat: | Z88: 2 | AA88: Tussen de tengels t.p.v. de plaatvaste oplegging/muurplaat:
A89: SlimFix-XT Passief M | B89: 8.0 | C89: =A89&" "&B89 -> SlimFix-XT Passief M 8 | D89: 8 | E89: 29 | F89: Schroef 340xØ8 | G89: 50 | H89: =CEILING(SlimFix!$D$32*SlimFix!$J$44/1020,1) -> 0 | I89: =CEILING(SlimFix!$D$50*SlimFix!$J$57/1020,1) -> 0 | J89: =((H89*SlimFix!$D$35)+(I89*SlimFix!$D$52))*2 -> 0 | K89: Schroef 340xØ8 | L89: 50 | M89: 8 | N89: =IF(calcu!$I$35<=0,0,calcu!$I$35) ->  | O89: =IF(OR(I89=0,calcu!$U$35<=0),0,calcu!$U$35) ->  | P89: =(H89*N89)+(I89*O89) ->  | T89: =K89 -> Schroef 340xØ8 | U89: =CEILING((P89+J89)/L89,1) ->  | V89: =CEILING((P89+J89)/100,1) ->  | W89: Max naadprofiel + Max luchtdicht afdekprofiel | X89: =CEILING((H89*(SlimFix!$J$32/1000))+(I89*(SlimFix!$J$50/1000)),1) -> 0 | Y89: Tussen de tengel t.p.v. elke onderliggende gording/muurplaat: | Z89: 2 | AA89: Tussen de tengels t.p.v. de plaatvaste oplegging/muurplaat:
A90: SlimFix-XT Riet | B90: 2.5+4.0 | C90: SlimFix-XT Riet 2.5+4.0 | D90: 3 | E90: 14.1 | F90: Schroef 140xØ6 | G90: 100 | H90: =CEILING(SlimFix!$D$32*SlimFix!$J$44/1020,1) -> 0 | I90: =CEILING(SlimFix!$D$50*SlimFix!$J$57/1020,1) -> 0 | J90: =((H90*(SlimFix!$D$35))+(I90*(SlimFix!$D$52)))*3 -> 0 | K90: Schroef 140xØ6 | L90: 100 | M90: 6 | N90: =IF(calcu!$I$32<=0,0,calcu!$I$32) ->  | O90: =IF(OR(I90=0,calcu!$U$32<=0),0,calcu!$U$32) ->  | R90: =F90 -> Schroef 140xØ6 | S90: =CEILING((J90+P90)/G90,1) ->  | W90: Luchtdichte afdekprofielen | X90: =CEILING((H90*(SlimFix!$J$32/1000))+(I90*(SlimFix!$J$50/1000)),1) -> 0 | Y90: T.p.v. elke onderliggende gording/muurplaat: | Z90: 3 | AA90: Extra t.p.v. de plaatvaste oplegging/muurplaat:
A91: SlimFix-XT Riet | B91: 3.0+4.0 | C91: SlimFix-XT Riet 3.0+4.0 | D91: 3 | E91: 14.7 | F91: Schroef 160xØ6 | G91: 100 | H91: =CEILING(SlimFix!$D$32*SlimFix!$J$44/1020,1) -> 0 | I91: =CEILING(SlimFix!$D$50*SlimFix!$J$57/1020,1) -> 0 | J91: =((H91*(SlimFix!$D$35))+(I91*(SlimFix!$D$52)))*3 -> 0 | K91: Schroef 160xØ6 | L91: 100 | M91: 6 | N91: =IF(calcu!$I$32<=0,0,calcu!$I$32) ->  | O91: =IF(OR(I91=0,calcu!$U$32<=0),0,calcu!$U$32) ->  | P91: =(H91*N91)+(I91*O91) ->  | R91: Schroef 160xØ6 | W91: Luchtdichte afdekprofielen | X91: =CEILING((H91*(SlimFix!$J$32/1000))+(I91*(SlimFix!$J$50/1000)),1) -> 0 | Y91: T.p.v. elke onderliggende gording/muurplaat: | Z91: 3 | AA91: Extra t.p.v. de plaatvaste oplegging/muurplaat:
A92: SlimFix-XT Riet | B92: 3.5+4.0 | C92: SlimFix-XT Riet 3.5+4.0 | D92: 3 | E92: 15.5 | F92: Schroef 180xØ8 | G92: 50 | H92: =CEILING(SlimFix!$D$32*SlimFix!$J$44/1020,1) -> 0 | I92: =CEILING(SlimFix!$D$50*SlimFix!$J$57/1020,1) -> 0 | J92: =((H92*(SlimFix!$D$35))+(I92*(SlimFix!$D$52)))*3 -> 0 | K92: Schroef 180xØ8 | L92: 50 | M92: 8 | N92: =IF(calcu!$I$33<=0,0,calcu!$I$33) ->  | O92: =IF(OR(I92=0,calcu!$U$33<=0),0,calcu!$U$33) ->  | R92: Schroef 180xØ8 | W92: Luchtdichte afdekprofielen | X92: =CEILING((H92*(SlimFix!$J$32/1000))+(I92*(SlimFix!$J$50/1000)),1) -> 0 | Y92: T.p.v. elke onderliggende gording/muurplaat: | Z92: 3 | AA92: Extra t.p.v. de plaatvaste oplegging/muurplaat:
A93: SlimFix-XT Riet | B93: 4.0+4.0 | C93: SlimFix-XT Riet 4.0+4.0 | D93: 3 | E93: 16.1 | F93: Schroef 200xØ8 | G93: 50 | H93: =CEILING(SlimFix!$D$32*SlimFix!$J$44/1020,1) -> 0 | I93: =CEILING(SlimFix!$D$50*SlimFix!$J$57/1020,1) -> 0 | J93: =((H93*(SlimFix!$D$35))+(I93*(SlimFix!$D$52)))*3 -> 0 | K93: Schroef 200xØ8 | L93: 50 | M93: 8 | N93: =IF(calcu!$I$33<=0,0,calcu!$I$33) ->  | O93: =IF(OR(I93=0,calcu!$U$33<=0),0,calcu!$U$33) ->  | R93: Schroef 200xØ8 | W93: Luchtdichte afdekprofielen | X93: =CEILING((H93*(SlimFix!$J$32/1000))+(I93*(SlimFix!$J$50/1000)),1) -> 0 | Y93: T.p.v. elke onderliggende gording/muurplaat: | Z93: 3 | AA93: Extra t.p.v. de plaatvaste oplegging/muurplaat:
A94: SlimFix-XT Riet | B94: 4.5+4.0 | C94: SlimFix-XT Riet 4.5+4.0 | D94: 3 | E94: 16.8 | F94: Schroef 220xØ8 | G94: 50 | H94: =CEILING(SlimFix!$D$32*SlimFix!$J$44/1020,1) -> 0 | I94: =CEILING(SlimFix!$D$50*SlimFix!$J$57/1020,1) -> 0 | J94: =((H94*(SlimFix!$D$35))+(I94*(SlimFix!$D$52)))*3 -> 0 | K94: Schroef 220xØ8 | L94: 50 | M94: 8 | N94: =IF(calcu!$I$33<=0,0,calcu!$I$33) ->  | O94: =IF(OR(I94=0,calcu!$U$33<=0),0,calcu!$U$33) ->  | R94: Schroef 220xØ8 | W94: Luchtdichte afdekprofielen | X94: =CEILING((H94*(SlimFix!$J$32/1000))+(I94*(SlimFix!$J$50/1000)),1) -> 0 | Y94: T.p.v. elke onderliggende gording/muurplaat: | Z94: 3 | AA94: Extra t.p.v. de plaatvaste oplegging/muurplaat:
A95: SlimFix-XT Riet | B95: 5.5+4.0 | C95: SlimFix-XT Riet 5.5+4.0 | D95: 3 | E95: 18 | F95: Schroef 260xØ8 | G95: 50 | H95: =CEILING(SlimFix!$D$32*SlimFix!$J$44/1020,1) -> 0 | I95: =CEILING(SlimFix!$D$50*SlimFix!$J$57/1020,1) -> 0 | J95: =((H95*(SlimFix!$D$35))+(I95*(SlimFix!$D$52)))*3 -> 0 | K95: Schroef 260xØ8 | L95: 50 | M95: 8 | N95: =IF(calcu!$I$33<=0,0,calcu!$I$33) ->  | O95: =IF(OR(I95=0,calcu!$U$33<=0),0,calcu!$U$33) ->  | R95: Schroef 260xØ8 | W95: Luchtdichte afdekprofielen | X95: =CEILING((H95*(SlimFix!$J$32/1000))+(I95*(SlimFix!$J$50/1000)),1) -> 0 | Y95: T.p.v. elke onderliggende gording/muurplaat: | Z95: 3 | AA95: Extra t.p.v. de plaatvaste oplegging/muurplaat:
A96: SlimFix-XT Riet | B96: 6.3+4.0 | C96: SlimFix-XT Riet 6.3+4.0 | D96: 3 | E96: 18.9 | F96: Schroef 280xØ8 | G96: 50 | H96: =CEILING(SlimFix!$D$32*SlimFix!$J$44/1020,1) -> 0 | I96: =CEILING(SlimFix!$D$50*SlimFix!$J$57/1020,1) -> 0 | J96: =((H96*(SlimFix!$D$35))+(I96*(SlimFix!$D$52)))*3 -> 0 | K96: Schroef 280xØ8 | L96: 50 | M96: 8 | N96: =IF(calcu!$I$33<=0,0,calcu!$I$33) ->  | O96: =IF(OR(I96=0,calcu!$U$33<=0),0,calcu!$U$33) ->  | R96: Schroef 280xØ8 | W96: Luchtdichte afdekprofielen | X96: =CEILING((H96*(SlimFix!$J$32/1000))+(I96*(SlimFix!$J$50/1000)),1) -> 0 | Y96: T.p.v. elke onderliggende gording/muurplaat: | Z96: 3 | AA96: Extra t.p.v. de plaatvaste oplegging/muurplaat:
A97: ATTENTIE: type op alfabetische volgorde
A100: _Type
A101: SlimFix 3/3
A102: SlimFix 3/3L | T102: 2 | U102: 3
A103: SlimFix 8/8
A104: SlimFix 8/8L
A105: SlimFix-XT 3/3R
A106: SlimFix-XT 3/3L
A107: SlimFix-XT 8/8R
A108: SlimFix-XT 8/8L
A109: SlimFix-XT Passief
A110: SlimFix-XT PassiefM
A111: SlimFix-XT Riet
A114: 2
A115: 3
A116: 4
A117: 5
A118: 6
A121: 1,2 of 3 bouwlagen (ééngezinswoning)
A122: Meer dan 3 bouwlagen (appartement, openbaar gebouw)

Sheet lijst reno (hidden)
A1: Keuzevelden | D1: AANTAL BEVESTIGERS PER PLAAT
D3: t.p.v. kruising tengel/gording | G3: dakvlak 1 | H3: dakvlak 2
A4: type | B4: RC-waarde | D4: type | E4: aantal | F4: maat | G4: aantal elem. | H4: aantal elem. | I4: schroef tot. | M4: type
A5: SlimFix Reno+ | B5: 2.5 | C5: =A5&" "&B5 -> SlimFix Reno+ 2,5 | D5: Schroef | E5: 6 | F5: 140xØ6 | G5: =CEILING('SlimFix Reno+'!$D$29*'SlimFix Reno+'!$D$36/1000,1) -> 0 | H5: =CEILING('SlimFix Reno+'!$D$40*'SlimFix Reno+'!$D$45/1000,1) -> 0 | I5: =((G5*'SlimFix Reno+'!$D$32)+(H5*'SlimFix Reno+'!$D$42))*3 -> 0 | M5: ='SlimFix Reno+'!D11&" "&'SlimFix Reno+'!J11 -> SlimFix Reno+
A6: SlimFix Reno+ | B6: 3.0 | C6: =A6&" "&B6 -> SlimFix Reno+ 3 | D6: Schroef | E6: 6 | F6: 140xØ6 | J6: Horizontale RenoGoot S (1,95 m, RAL 7021)* | K6: Verticale RenoGoot S (1,6 m, RAL 7021)
A7: SlimFix Reno+ | B7: 3.5 | C7: SlimFix Reno+ 3,5 | D7: Schroef | E7: 6 | F7: 160xØ6 | J7: Horizontale RenoGoot S (1,95 m, RAL 7021)* | K7: Verticale RenoGoot S (1,6 m, RAL 7021)
A8: SlimFix Reno+ | B8: 4.0 | C8: SlimFix Reno+ 4 | D8: Schroef | E8: 6 | F8: 180xØ6 | J8: Horizontale RenoGoot M (1,95 m, RAL 7021)* | K8: Verticale RenoGoot M (1,6 m, RAL 7021)
A9: SlimFix Reno+ | B9: 4.5 | C9: SlimFix Reno+ 4,5 | D9: Schroef | E9: 6 | F9: 200xØ6 | J9: Horizontale RenoGoot M (1,95 m, RAL 7021)* | K9: Verticale RenoGoot M (1,6 m, RAL 7021)
A10: SlimFix Reno+ | B10: 5.0 | C10: SlimFix Reno+ 5 | D10: Schroef | E10: 6 | F10: 200xØ6 | J10: Horizontale RenoGoot M (1,95 m, RAL 7021)* | K10: Verticale RenoGoot M (1,6 m, RAL 7021)
A11: SlimFix Reno+ | B11: 6.3 | C11: SlimFix Reno+ 6,3 | D11: Schroef | E11: 6 | F11: 260xØ6 | J11: Horizontale RenoGoot L (1,95 m, RAL 7021)* | K11: Verticale RenoGoot L (1,6 m, RAL 7021)
A12: SlimFix Reno+ | B12: 7.0 | C12: SlimFix Reno+ 7 | D12: Schroef | E12: 6 | F12: 280xØ6 | J12: Horizontale RenoGoot L (1,95 m, RAL 7021)* | K12: Verticale RenoGoot L (1,6 m, RAL 7021)
A13: SlimFix Reno+ | B13: 8.0 | C13: SlimFix Reno+ 8 | D13: Schroef | E13: 6 | F13: 300xØ6 | J13: Horizontale RenoGoot L (1,95 m, RAL 7021)* | K13: Verticale RenoGoot L (1,6 m, RAL 7021)
A15: * Het Horizontale RenoGoot-pakket bevat: 6x Horizontale RenoGoot (bestaande uit een kopplaat en een gootdeel), 14x brackets (ter versteviging en koppeling) en 30x RVS-schroeven met verzonken kop Ø4 mm x 32 mm TX. ** Het Verticale RenoGoot-pakket bevat: 4x Verticale RenoGoot (bestaande uit een verholen goot en een afdekkap), 4x schuimrubberband (1,5 m) en 24x RVS-boorschroeven + rubberring Ø4.8 mm x 32 mm TX. Attentie: Bij gebruik van de RenoGoot altijd de SlimFix Reno+ platen met gootdetail bestellen.

Sheet lijst renotwin (hidden)
A1: Keuzevelden
D3: dakvlak 1 | E3: dakvlak 2 | F3: dakvlak 1 | G3: dakvlak 2
A4: type | B4: RC-waarde | D4: aantal elem. | E4: aantal elem. | F4: schroef tot. | G4: schroef tot. | K4: Afstand tussen schroeven in mm bij 67° bevestiging | L4: Benodigde lengte in mm RenoTwin schroef | N4: type
A5: SlimFix RenoTwin | B5: 3.5 | C5: =A5&" "&B5 -> SlimFix RenoTwin 3,5 | D5: =CEILING('SlimFix RenoTwin'!$D$31*'SlimFix RenoTwin'!$J$41/1000,1) -> 0 | E5: =CEILING('SlimFix RenoTwin'!$D$48*'SlimFix RenoTwin'!$J$54/1000,1) -> 0 | F5: =((D5*'SlimFix RenoTwin'!$D$34))*3 -> 0 | G5: =((E5*'SlimFix RenoTwin'!D50))*3 -> 0 | H5: Horizontale RenoGoot S (1,95 m, RAL 7021)* | I5: Verticale RenoGoot S (1,6 m, RAL 7021) | K5: (100 | L5: 8x255 | N5: ='SlimFix RenoTwin'!D11&" "&'SlimFix RenoTwin'!J11 -> SlimFix RenoTwin
A6: SlimFix RenoTwin | B6: 4.0 | C6: SlimFix RenoTwin 4 | H6: Horizontale RenoGoot M (1,95 m, RAL 7021)* | I6: Verticale RenoGoot M (1,6 m, RAL 7021) | K6: (115 | L6: 8x275
A7: SlimFix RenoTwin | B7: 4.5 | C7: SlimFix RenoTwin 4,5 | H7: Horizontale RenoGoot M (1,95 m, RAL 7021)* | I7: Verticale RenoGoot M (1,6 m, RAL 7021) | K7: (125 | L7: 8x302
A8: SlimFix RenoTwin | B8: 5.0 | C8: SlimFix RenoTwin 5 | H8: Horizontale RenoGoot L (1,95 m, RAL 7021)* | I8: Verticale RenoGoot L (1,6 m, RAL 7021) | K8: (125 | L8: 8x302
A9: SlimFix RenoTwin | B9: 5.5 | C9: SlimFix RenoTwin 5,5 | H9: Horizontale RenoGoot L (1,95 m, RAL 7021)* | I9: Verticale RenoGoot L (1,6 m, RAL 7021) | K9: (140 | L9: 8x335
A10: SlimFix RenoTwin | B10: 6.3 | C10: SlimFix RenoTwin 6,3 | H10: Horizontale RenoGoot L (1,95 m, RAL 7021)* | I10: Verticale RenoGoot L (1,6 m, RAL 7021) | K10: (140 | L10: 8x365
A11: SlimFix RenoTwin | B11: 6.7 | C11: SlimFix RenoTwin 6,7 | H11: Horizontale RenoGoot L (1,95 m, RAL 7021)* | I11: Verticale RenoGoot L (1,6 m, RAL 7021) | K11: (150 | L11: 8x365
A12: SlimFix RenoTwin | B12: 7.0 | C12: SlimFix RenoTwin 7 | H12: Horizontale RenoGoot L (1,95 m, RAL 7021)* | I12: Verticale RenoGoot L (1,6 m, RAL 7021) | K12: (150 | L12: 8x365
A13: SlimFix RenoTwin | B13: 8.0 | C13: SlimFix RenoTwin 8 | H13: Horizontale RenoGoot L (1,95 m, RAL 7021)* | I13: Verticale RenoGoot L (1,6 m, RAL 7021) | K13: (160 | L13: 8x397
A14: SlimFix RenoTwin | B14: 9.0 | C14: SlimFix RenoTwin 9 | H14: Horizontale RenoGoot L (1,95 m, RAL 7021)* | I14: Verticale RenoGoot L (1,6 m, RAL 7021) | K14: (180 | L14: 8x435
A18: * Het Horizontale RenoGoot-pakket bevat: 6x Horizontale RenoGoot (bestaande uit een kopplaat en een gootdeel), 14x brackets (ter versteviging en koppeling) en 30x RVS-schroeven met verzonken kop Ø4 mm x 32 mm TX. ** Het Verticale RenoGoot-pakket bevat: 4x Verticale RenoGoot (bestaande uit een verholen goot en een afdekkap), 4x schuimrubberband (1,5 m) en 24x RVS-boorschroeven + rubberring Ø4.8 mm x 32 mm TX. Attentie: Bij gebruik van de RenoGoot altijd de SlimFix Reno+ platen met gootdetail bestellen.
A26: type | C26: doorbuiging | D26: dakpakket | E26: schroef | G26: doorbuiging | H26: pakket | J26: schroef | K26: eenheid
A27: SlimFix RenoTwin 3,5 | B27: =CONCATENATE(A27&C27&D27) -> SlimFix RenoTwin 3,5022 | C27: 0 | D27: 22 | E27: 8x195 | G27: _kies | H27: _kies | J27: 8x195 | K27: 50st./ds | L27: 50
A28: SlimFix RenoTwin 3,5 | B28: SlimFix RenoTwin 3,5040 | C28: 0 | D28: 40 | E28: 8x195 | G28: 0 | H28: 22 | J28: 8x225 | K28: 50st./ds | L28: 50
A29: SlimFix RenoTwin 3,5 | B29: SlimFix RenoTwin 3,5050 | C29: 0 | D29: 50 | E29: 8x225 | G29: 20 | H29: 40 | J29: 8x235 | K29: 50st./ds | L29: 50
A30: SlimFix RenoTwin 3,5 | B30: SlimFix RenoTwin 3,5060 | C30: 0 | D30: 60 | E30: 8x225 | G30: 30 | H30: 50 | J30: 8x255 | K30: 50st./ds | L30: 50
A31: SlimFix RenoTwin 3,5 | B31: SlimFix RenoTwin 3,5070 | C31: 0 | D31: 70 | E31: 8x225 | H31: 60 | J31: 8x275 | K31: 50st./ds | L31: 50
A32: SlimFix RenoTwin 3,5 | B32: SlimFix RenoTwin 3,52022 | C32: 20 | D32: 22 | E32: 8x195 | H32: 70 | J32: 8x302 | K32: 50st./ds | L32: 50
A33: SlimFix RenoTwin 3,5 | B33: SlimFix RenoTwin 3,52040 | C33: 20 | D33: 40 | E33: 8x225 | G33: _kies | J33: 8x335 | K33: 50st./ds | L33: 50
A34: SlimFix RenoTwin 3,5 | B34: SlimFix RenoTwin 3,52050 | C34: 20 | D34: 50 | E34: 8x225 | G34: Ja | J34: 8x365 | K34: 50st./ds | L34: 50
A35: SlimFix RenoTwin 3,5 | B35: SlimFix RenoTwin 3,52060 | C35: 20 | D35: 60 | E35: 8x235 | G35: Nee | J35: 8x397 | K35: 50st./ds | L35: 50
A36: SlimFix RenoTwin 3,5 | B36: SlimFix RenoTwin 3,52070 | C36: 20 | D36: 70 | E36: 8x255 | J36: 8x435 | K36: 25st./ds | L36: 25
A37: SlimFix RenoTwin 3,5 | B37: SlimFix RenoTwin 3,53022 | C37: 30 | D37: 22 | E37: 8x225 | J37: 8x472 | K37: 25st./ds | L37: 25
A38: SlimFix RenoTwin 3,5 | B38: SlimFix RenoTwin 3,53040 | C38: 30 | D38: 40 | E38: 8x225 | J38: n.v.t.
A39: SlimFix RenoTwin 3,5 | B39: SlimFix RenoTwin 3,53050 | C39: 30 | D39: 50 | E39: 8x235
A40: SlimFix RenoTwin 3,5 | B40: SlimFix RenoTwin 3,53060 | C40: 30 | D40: 60 | E40: 8x255
A41: SlimFix RenoTwin 3,5 | B41: SlimFix RenoTwin 3,53070 | C41: 30 | D41: 70 | E41: 8x255 | I41: dakvlak 1
A42: SlimFix RenoTwin 4,5 | B42: SlimFix RenoTwin 4,5022 | C42: 0 | D42: 22 | E42: 8x225 | I42: ='SlimFix RenoTwin'!D39 -> _kies | J42: 0 | K42: 20 | L42: 30
A43: SlimFix RenoTwin 4,5 | B43: SlimFix RenoTwin 4,5040 | C43: 0 | D43: 40 | E43: 8x225 | I43: _kies
A44: SlimFix RenoTwin 4,5 | B44: =CONCATENATE(A44&C44&D44) -> SlimFix RenoTwin 4,5050 | C44: 0 | D44: 50 | E44: 8x235 | I44: =IF(HLOOKUP($I$42,$J$42:$L$48,3)>0,HLOOKUP($I$42,$J$42:$L$48,3)," ") ->  | J44: 40 | K44: 22 | L44: 22
A45: SlimFix RenoTwin 4,5 | B45: SlimFix RenoTwin 4,5060 | C45: 0 | D45: 60 | E45: 8x255 | I45: =IF(HLOOKUP($I$42,$J$42:$L$48,4)>0,HLOOKUP($I$42,$J$42:$L$48,4)," ") ->  | J45: 50 | K45: 40 | L45: 40
A46: SlimFix RenoTwin 4,5 | B46: SlimFix RenoTwin 4,5070 | C46: 0 | D46: 70 | E46: 8x255 | I46: =IF(HLOOKUP($I$42,$J$42:$L$48,5)>0,HLOOKUP($I$42,$J$42:$L$48,5)," ") ->  | J46: 60 | K46: 50 | L46: 50
A47: SlimFix RenoTwin 4,5 | B47: SlimFix RenoTwin 4,52022 | C47: 20 | D47: 22 | E47: 8x235 | I47: =IF(HLOOKUP($I$42,$J$42:$L$48,6)>0,HLOOKUP($I$42,$J$42:$L$48,6)," ") ->  | J47: 70 | K47: 60 | L47: 60
A48: SlimFix RenoTwin 4,5 | B48: SlimFix RenoTwin 4,52040 | C48: 20 | D48: 40 | E48: 8x255 | I48: =IF(HLOOKUP($I$42,$J$42:$L$48,7)>0,HLOOKUP($I$42,$J$42:$L$48,7)," ") ->  | K48: 70 | L48: 70
A49: SlimFix RenoTwin 4,5 | B49: SlimFix RenoTwin 4,52050 | C49: 20 | D49: 50 | E49: 8x255 | I49: dakvlak 2
A50: SlimFix RenoTwin 4,5 | B50: SlimFix RenoTwin 4,52060 | C50: 20 | D50: 60 | E50: 8x275 | I50: ='SlimFix RenoTwin'!D52 -> _kies | J50: 0 | K50: 20 | L50: 30
A51: SlimFix RenoTwin 4,5 | B51: SlimFix RenoTwin 4,52070 | C51: 20 | D51: 70 | E51: 8x275 | I51: _kies
A52: SlimFix RenoTwin 4,5 | B52: SlimFix RenoTwin 4,53022 | C52: 30 | D52: 22 | E52: 8x255 | I52: =IF(HLOOKUP($I$50,$J$50:$L$56,3)>0,HLOOKUP($I$50,$J$50:$L$56,3)," ") ->  | J52: 40 | K52: 22 | L52: 22
A53: SlimFix RenoTwin 4,5 | B53: SlimFix RenoTwin 4,53040 | C53: 30 | D53: 40 | E53: 8x255 | I53: =IF(HLOOKUP($I$50,$J$50:$L$56,4)>0,HLOOKUP($I$50,$J$50:$L$56,4)," ") ->  | J53: 50 | K53: 40 | L53: 40
A54: SlimFix RenoTwin 4,5 | B54: SlimFix RenoTwin 4,53050 | C54: 30 | D54: 50 | E54: 8x275 | I54: =IF(HLOOKUP($I$50,$J$50:$L$56,5)>0,HLOOKUP($I$50,$J$50:$L$56,5)," ") ->  | J54: 60 | K54: 50 | L54: 50
A55: SlimFix RenoTwin 4,5 | B55: SlimFix RenoTwin 4,53060 | C55: 30 | D55: 60 | E55: 8x275 | I55: =IF(HLOOKUP($I$50,$J$50:$L$56,6)>0,HLOOKUP($I$50,$J$50:$L$56,6)," ") ->  | J55: 70 | K55: 60 | L55: 60
A56: SlimFix RenoTwin 4,5 | B56: SlimFix RenoTwin 4,53070 | C56: 30 | D56: 70 | E56: 8x302 | I56: =IF(HLOOKUP($I$50,$J$50:$L$56,7)>0,HLOOKUP($I$50,$J$50:$L$56,7)," ") ->  | K56: 70 | L56: 70
A57: SlimFix RenoTwin 4 | B57: SlimFix RenoTwin 4022 | C57: 0 | D57: 22 | E57: 8x195
A58: SlimFix RenoTwin 4 | B58: SlimFix RenoTwin 4040 | C58: 0 | D58: 40 | E58: 8x225
A59: SlimFix RenoTwin 4 | B59: SlimFix RenoTwin 4050 | C59: 0 | D59: 50 | E59: 8x225 | I59: Type | J59: Afstand tussen schroeven in mm bij 67° bevestiging | K59: Benodigde lengte in mm RenoTwin schroef
A60: SlimFix RenoTwin 4 | B60: SlimFix RenoTwin 4060 | C60: 0 | D60: 60 | E60: 8x235 | I60: RenoTwin 3.5 | J60: (100 | K60: 255
A61: SlimFix RenoTwin 4 | B61: SlimFix RenoTwin 4070 | C61: 0 | D61: 70 | E61: 8x255 | I61: RenoTwin 4.0 | J61: (115 | K61: 275
A62: SlimFix RenoTwin 4 | B62: SlimFix RenoTwin 42022 | C62: 20 | D62: 22 | E62: 8x225 | I62: RenoTwin 4.5 | J62: (125 | K62: 302
A63: SlimFix RenoTwin 4 | B63: SlimFix RenoTwin 42040 | C63: 20 | D63: 40 | E63: 8x235 | I63: RenoTwin 5.0 | J63: (125 | K63: 302
A64: SlimFix RenoTwin 4 | B64: SlimFix RenoTwin 42050 | C64: 20 | D64: 50 | E64: 8x255 | I64: RenoTwin 5.5 | J64: (140 | K64: 335
A65: SlimFix RenoTwin 4 | B65: SlimFix RenoTwin 42060 | C65: 20 | D65: 60 | E65: 8x255 | I65: RenoTwin 6.3 | J65: 140 | K65: 365
A66: SlimFix RenoTwin 4 | B66: SlimFix RenoTwin 42070 | C66: 20 | D66: 70 | E66: 8x275 | I66: RenoTwin 6.7 | J66: 150 | K66: 365
A67: SlimFix RenoTwin 4 | B67: SlimFix RenoTwin 43022 | C67: 30 | D67: 22 | E67: 8x225 | I67: RenoTwin 7.0 | J67: 150 | K67: 365
A68: SlimFix RenoTwin 4 | B68: SlimFix RenoTwin 43040 | C68: 30 | D68: 40 | E68: 8x255 | I68: RenoTwin 8.0 | J68: 160 | K68: 397
A69: SlimFix RenoTwin 4 | B69: SlimFix RenoTwin 43050 | C69: 30 | D69: 50 | E69: 8x255 | I69: RenoTwin 9.0 | J69: 180 | K69: 435
A70: SlimFix RenoTwin 4 | B70: SlimFix RenoTwin 43060 | C70: 30 | D70: 60 | E70: 8x275
A71: SlimFix RenoTwin 4 | B71: SlimFix RenoTwin 43070 | C71: 30 | D71: 70 | E71: 8x275
A72: SlimFix RenoTwin 5,5 | B72: SlimFix RenoTwin 5,5022 | C72: 0 | D72: 22 | E72: 8x235
A73: SlimFix RenoTwin 5,5 | B73: SlimFix RenoTwin 5,5040 | C73: 0 | D73: 40 | E73: 8x255
A74: SlimFix RenoTwin 5,5 | B74: SlimFix RenoTwin 5,5050 | C74: 0 | D74: 50 | E74: 8x275
A75: SlimFix RenoTwin 5,5 | B75: SlimFix RenoTwin 5,5060 | C75: 0 | D75: 60 | E75: 8x275
A76: SlimFix RenoTwin 5,5 | B76: =CONCATENATE(A76&C76&D76) -> SlimFix RenoTwin 5,5070 | C76: 0 | D76: 70 | E76: 8x302
A77: SlimFix RenoTwin 5,5 | B77: SlimFix RenoTwin 5,52022 | C77: 20 | D77: 22 | E77: 8x255
A78: SlimFix RenoTwin 5,5 | B78: SlimFix RenoTwin 5,52040 | C78: 20 | D78: 40 | E78: 8x275
A79: SlimFix RenoTwin 5,5 | B79: SlimFix RenoTwin 5,52050 | C79: 20 | D79: 50 | E79: 8x302
A80: SlimFix RenoTwin 5,5 | B80: SlimFix RenoTwin 5,52060 | C80: 20 | D80: 60 | E80: 8x302
A81: SlimFix RenoTwin 5,5 | B81: SlimFix RenoTwin 5,52070 | C81: 20 | D81: 70 | E81: 8x302
A82: SlimFix RenoTwin 5,5 | B82: SlimFix RenoTwin 5,53022 | C82: 30 | D82: 22 | E82: 8x275
A83: SlimFix RenoTwin 5,5 | B83: SlimFix RenoTwin 5,53040 | C83: 30 | D83: 40 | E83: 8x302
A84: SlimFix RenoTwin 5,5 | B84: SlimFix RenoTwin 5,53050 | C84: 30 | D84: 50 | E84: 8x302
A85: SlimFix RenoTwin 5,5 | B85: SlimFix RenoTwin 5,53060 | C85: 30 | D85: 60 | E85: 8x302
A86: SlimFix RenoTwin 5,5 | B86: SlimFix RenoTwin 5,53070 | C86: 30 | D86: 70 | E86: 8x335
A87: SlimFix RenoTwin 5 | B87: SlimFix RenoTwin 5022 | C87: 0 | D87: 22 | E87: 8x225
A88: SlimFix RenoTwin 5 | B88: SlimFix RenoTwin 5040 | C88: 0 | D88: 40 | E88: 8x255
A89: SlimFix RenoTwin 5 | B89: SlimFix RenoTwin 5050 | C89: 0 | D89: 50 | E89: 8x255
A90: SlimFix RenoTwin 5 | B90: SlimFix RenoTwin 5060 | C90: 0 | D90: 60 | E90: 8x275
A91: SlimFix RenoTwin 5 | B91: SlimFix RenoTwin 5070 | C91: 0 | D91: 70 | E91: 8x275
A92: SlimFix RenoTwin 5 | B92: SlimFix RenoTwin 52022 | C92: 20 | D92: 22 | E92: 8x255
A93: SlimFix RenoTwin 5 | B93: SlimFix RenoTwin 52040 | C93: 20 | D93: 40 | E93: 8x275
A94: SlimFix RenoTwin 5 | B94: SlimFix RenoTwin 52050 | C94: 20 | D94: 50 | E94: 8x275
A95: SlimFix RenoTwin 5 | B95: SlimFix RenoTwin 52060 | C95: 20 | D95: 60 | E95: 8x302
A96: SlimFix RenoTwin 5 | B96: SlimFix RenoTwin 52070 | C96: 20 | D96: 70 | E96: 8x302
A97: SlimFix RenoTwin 5 | B97: SlimFix RenoTwin 53022 | C97: 30 | D97: 22 | E97: 8x255
A98: SlimFix RenoTwin 5 | B98: SlimFix RenoTwin 53040 | C98: 30 | D98: 40 | E98: 8x275
A99: SlimFix RenoTwin 5 | B99: SlimFix RenoTwin 53050 | C99: 30 | D99: 50 | E99: 8x302
A100: SlimFix RenoTwin 5 | B100: SlimFix RenoTwin 53060 | C100: 30 | D100: 60 | E100: 8x302
A101: SlimFix RenoTwin 5 | B101: SlimFix RenoTwin 53070 | C101: 30 | D101: 70 | E101: 8x302
A102: SlimFix RenoTwin 6,3 | B102: SlimFix RenoTwin 6,3022 | C102: 0 | D102: 22 | E102: 8x275
A103: SlimFix RenoTwin 6,3 | B103: SlimFix RenoTwin 6,3040 | C103: 0 | D103: 40 | E103: 8x302
A104: SlimFix RenoTwin 6,3 | B104: SlimFix RenoTwin 6,3050 | C104: 0 | D104: 50 | E104: 8x302
A105: SlimFix RenoTwin 6,3 | B105: SlimFix RenoTwin 6,3060 | C105: 0 | D105: 60 | E105: 8x302
A106: SlimFix RenoTwin 6,3 | B106: SlimFix RenoTwin 6,3070 | C106: 0 | D106: 70 | E106: 8x335
A107: SlimFix RenoTwin 6,3 | B107: SlimFix RenoTwin 6,32022 | C107: 20 | D107: 22 | E107: 8x302
A108: SlimFix RenoTwin 6,3 | B108: =CONCATENATE(A108&C108&D108) -> SlimFix RenoTwin 6,32040 | C108: 20 | D108: 40 | E108: 8x302
A109: SlimFix RenoTwin 6,3 | B109: SlimFix RenoTwin 6,32050 | C109: 20 | D109: 50 | E109: 8x335
A110: SlimFix RenoTwin 6,3 | B110: SlimFix RenoTwin 6,32060 | C110: 20 | D110: 60 | E110: 8x335
A111: SlimFix RenoTwin 6,3 | B111: SlimFix RenoTwin 6,32070 | C111: 20 | D111: 70 | E111: 8x335
A112: SlimFix RenoTwin 6,3 | B112: SlimFix RenoTwin 6,33022 | C112: 30 | D112: 22 | E112: 8x302
A113: SlimFix RenoTwin 6,3 | B113: SlimFix RenoTwin 6,33040 | C113: 30 | D113: 40 | E113: 8x335
A114: SlimFix RenoTwin 6,3 | B114: SlimFix RenoTwin 6,33050 | C114: 30 | D114: 50 | E114: 8x335
A115: SlimFix RenoTwin 6,3 | B115: SlimFix RenoTwin 6,33060 | C115: 30 | D115: 60 | E115: 8x335
A116: SlimFix RenoTwin 6,3 | B116: SlimFix RenoTwin 6,33070 | C116: 30 | D116: 70 | E116: 8x365
A117: SlimFix RenoTwin 6,7 | B117: SlimFix RenoTwin 6,7022 | C117: 0 | D117: 22 | E117: 8x275
A118: SlimFix RenoTwin 6,7 | B118: SlimFix RenoTwin 6,7040 | C118: 0 | D118: 40 | E118: 8x302
A119: SlimFix RenoTwin 6,7 | B119: SlimFix RenoTwin 6,7050 | C119: 0 | D119: 50 | E119: 8x302
A120: SlimFix RenoTwin 6,7 | B120: SlimFix RenoTwin 6,7060 | C120: 0 | D120: 60 | E120: 8x335
A121: SlimFix RenoTwin 6,7 | B121: SlimFix RenoTwin 6,7070 | C121: 0 | D121: 70 | E121: 8x335
A122: SlimFix RenoTwin 6,7 | B122: SlimFix RenoTwin 6,72022 | C122: 20 | D122: 22 | E122: 8x302
A123: SlimFix RenoTwin 6,7 | B123: SlimFix RenoTwin 6,72040 | C123: 20 | D123: 40 | E123: 8x335
A124: SlimFix RenoTwin 6,7 | B124: SlimFix RenoTwin 6,72050 | C124: 20 | D124: 50 | E124: 8x335
A125: SlimFix RenoTwin 6,7 | B125: SlimFix RenoTwin 6,72060 | C125: 20 | D125: 60 | E125: 8x335
A126: SlimFix RenoTwin 6,7 | B126: SlimFix RenoTwin 6,72070 | C126: 20 | D126: 70 | E126: 8x365
A127: SlimFix RenoTwin 6,7 | B127: SlimFix RenoTwin 6,73022 | C127: 30 | D127: 22 | E127: 8x302
A128: SlimFix RenoTwin 6,7 | B128: SlimFix RenoTwin 6,73040 | C128: 30 | D128: 40 | E128: 8x335
A129: SlimFix RenoTwin 6,7 | B129: SlimFix RenoTwin 6,73050 | C129: 30 | D129: 50 | E129: 8x335
A130: SlimFix RenoTwin 6,7 | B130: SlimFix RenoTwin 6,73060 | C130: 30 | D130: 60 | E130: 8x365
A131: SlimFix RenoTwin 6,7 | B131: SlimFix RenoTwin 6,73070 | C131: 30 | D131: 70 | E131: 8x365
A132: SlimFix RenoTwin 7 | B132: SlimFix RenoTwin 7022 | C132: 0 | D132: 22 | E132: 8x302
A133: SlimFix RenoTwin 7 | B133: SlimFix RenoTwin 7040 | C133: 0 | D133: 40 | E133: 8x302
A134: SlimFix RenoTwin 7 | B134: SlimFix RenoTwin 7050 | C134: 0 | D134: 50 | E134: 8x335
A135: SlimFix RenoTwin 7 | B135: SlimFix RenoTwin 7060 | C135: 0 | D135: 60 | E135: 8x335
A136: SlimFix RenoTwin 7 | B136: SlimFix RenoTwin 7070 | C136: 0 | D136: 70 | E136: 8x335
A137: SlimFix RenoTwin 7 | B137: SlimFix RenoTwin 72022 | C137: 20 | D137: 22 | E137: 8x302
A138: SlimFix RenoTwin 7 | B138: SlimFix RenoTwin 72040 | C138: 20 | D138: 40 | E138: 8x335
A139: SlimFix RenoTwin 7 | B139: SlimFix RenoTwin 72050 | C139: 20 | D139: 50 | E139: 8x335
A140: SlimFix RenoTwin 7 | B140: =CONCATENATE(A140&C140&D140) -> SlimFix RenoTwin 72060 | C140: 20 | D140: 60 | E140: 8x365
A141: SlimFix RenoTwin 7 | B141: SlimFix RenoTwin 72070 | C141: 20 | D141: 70 | E141: 8x365
A142: SlimFix RenoTwin 7 | B142: SlimFix RenoTwin 73022 | C142: 30 | D142: 22 | E142: 8x335
A143: SlimFix RenoTwin 7 | B143: SlimFix RenoTwin 73040 | C143: 30 | D143: 40 | E143: 8x335
A144: SlimFix RenoTwin 7 | B144: SlimFix RenoTwin 73050 | C144: 30 | D144: 50 | E144: 8x365
A145: SlimFix RenoTwin 7 | B145: SlimFix RenoTwin 73060 | C145: 30 | D145: 60 | E145: 8x365
A146: SlimFix RenoTwin 7 | B146: SlimFix RenoTwin 73070 | C146: 30 | D146: 70 | E146: 8x365
A147: SlimFix RenoTwin 8 | B147: SlimFix RenoTwin 8022 | C147: 0 | D147: 22 | E147: 8x335
A148: SlimFix RenoTwin 8 | B148: SlimFix RenoTwin 8040 | C148: 0 | D148: 40 | E148: 8x335
A149: SlimFix RenoTwin 8 | B149: SlimFix RenoTwin 8050 | C149: 0 | D149: 50 | E149: 8x365
A150: SlimFix RenoTwin 8 | B150: SlimFix RenoTwin 8060 | C150: 0 | D150: 60 | E150: 8x365
A151: SlimFix RenoTwin 8 | B151: SlimFix RenoTwin 8070 | C151: 0 | D151: 70 | E151: 8x365
A152: SlimFix RenoTwin 8 | B152: SlimFix RenoTwin 82022 | C152: 20 | D152: 22 | E152: 8x365
A153: SlimFix RenoTwin 8 | B153: SlimFix RenoTwin 82040 | C153: 20 | D153: 40 | E153: 8x365
A154: SlimFix RenoTwin 8 | B154: SlimFix RenoTwin 82050 | C154: 20 | D154: 50 | E154: 8x365
A155: SlimFix RenoTwin 8 | B155: SlimFix RenoTwin 82060 | C155: 20 | D155: 60 | E155: 8x397
A156: SlimFix RenoTwin 8 | B156: SlimFix RenoTwin 82070 | C156: 20 | D156: 70 | E156: 8x397
A157: SlimFix RenoTwin 8 | B157: SlimFix RenoTwin 83022 | C157: 30 | D157: 22 | E157: 8x365
A158: SlimFix RenoTwin 8 | B158: SlimFix RenoTwin 83040 | C158: 30 | D158: 40 | E158: 8x365
A159: SlimFix RenoTwin 8 | B159: SlimFix RenoTwin 83050 | C159: 30 | D159: 50 | E159: 8x397
A160: SlimFix RenoTwin 8 | B160: SlimFix RenoTwin 83060 | C160: 30 | D160: 60 | E160: 8x397
A161: SlimFix RenoTwin 8 | B161: SlimFix RenoTwin 83070 | C161: 30 | D161: 70 | E161: 8x397
A162: SlimFix RenoTwin 9 | B162: SlimFix RenoTwin 9022 | C162: 0 | D162: 22 | E162: 8x365
A163: SlimFix RenoTwin 9 | B163: SlimFix RenoTwin 9040 | C163: 0 | D163: 40 | E163: 8x397
A164: SlimFix RenoTwin 9 | B164: SlimFix RenoTwin 9050 | C164: 0 | D164: 50 | E164: 8x397
A165: SlimFix RenoTwin 9 | B165: SlimFix RenoTwin 9060 | C165: 0 | D165: 60 | E165: 8x397
A166: SlimFix RenoTwin 9 | B166: SlimFix RenoTwin 9070 | C166: 0 | D166: 70 | E166: 8x435
A167: SlimFix RenoTwin 9 | B167: SlimFix RenoTwin 92022 | C167: 20 | D167: 22 | E167: 8x397
A168: SlimFix RenoTwin 9 | B168: SlimFix RenoTwin 92040 | C168: 20 | D168: 40 | E168: 8x397
A169: SlimFix RenoTwin 9 | B169: SlimFix RenoTwin 92050 | C169: 20 | D169: 50 | E169: 8x435
A170: SlimFix RenoTwin 9 | B170: SlimFix RenoTwin 92060 | C170: 20 | D170: 60 | E170: 8x435
A171: SlimFix RenoTwin 9 | B171: SlimFix RenoTwin 92070 | C171: 20 | D171: 70 | E171: 8x435
A172: SlimFix RenoTwin 9 | B172: =CONCATENATE(A172&C172&D172) -> SlimFix RenoTwin 93022 | C172: 30 | D172: 22 | E172: 8x397
A173: SlimFix RenoTwin 9 | B173: SlimFix RenoTwin 93040 | C173: 30 | D173: 40 | E173: 8x435
A174: SlimFix RenoTwin 9 | B174: SlimFix RenoTwin 93050 | C174: 30 | D174: 50 | E174: 8x435
A175: SlimFix RenoTwin 9 | B175: SlimFix RenoTwin 93060 | C175: 30 | D175: 60 | E175: 8x435
A176: SlimFix RenoTwin 9 | B176: SlimFix RenoTwin 93070 | C176: 30 | D176: 70 | E176: 8x435
A177: SlimFix RenoTwin Solar 3.5 | B177: =CONCATENATE(A177&C177&D177) -> SlimFix RenoTwin Solar 3.5022 | C177: 0 | D177: 22 | E177: 8x195
A178: SlimFix RenoTwin Solar 3.5 | B178: SlimFix RenoTwin Solar 3.5040 | C178: 0 | D178: 40 | E178: 8x195
A179: SlimFix RenoTwin Solar 3.5 | B179: SlimFix RenoTwin Solar 3.5050 | C179: 0 | D179: 50 | E179: 8x225
A180: SlimFix RenoTwin Solar 3.5 | B180: SlimFix RenoTwin Solar 3.5060 | C180: 0 | D180: 60 | E180: 8x225
A181: SlimFix RenoTwin Solar 3.5 | B181: SlimFix RenoTwin Solar 3.5070 | C181: 0 | D181: 70 | E181: 8x225
A182: SlimFix RenoTwin Solar 3.5 | B182: SlimFix RenoTwin Solar 3.52022 | C182: 20 | D182: 22 | E182: 8x195
A183: SlimFix RenoTwin Solar 3.5 | B183: SlimFix RenoTwin Solar 3.52040 | C183: 20 | D183: 40 | E183: 8x225
A184: SlimFix RenoTwin Solar 3.5 | B184: SlimFix RenoTwin Solar 3.52050 | C184: 20 | D184: 50 | E184: 8x225
A185: SlimFix RenoTwin Solar 3.5 | B185: SlimFix RenoTwin Solar 3.52060 | C185: 20 | D185: 60 | E185: 8x235
A186: SlimFix RenoTwin Solar 3.5 | B186: SlimFix RenoTwin Solar 3.52070 | C186: 20 | D186: 70 | E186: 8x255
A187: SlimFix RenoTwin Solar 3.5 | B187: SlimFix RenoTwin Solar 3.53022 | C187: 30 | D187: 22 | E187: 8x225
A188: SlimFix RenoTwin Solar 3.5 | B188: SlimFix RenoTwin Solar 3.53040 | C188: 30 | D188: 40 | E188: 8x225
A189: SlimFix RenoTwin Solar 3.5 | B189: =CONCATENATE(A189&C189&D189) -> SlimFix RenoTwin Solar 3.53050 | C189: 30 | D189: 50 | E189: 8x235
A190: SlimFix RenoTwin Solar 3.5 | B190: SlimFix RenoTwin Solar 3.53060 | C190: 30 | D190: 60 | E190: 8x255
A191: SlimFix RenoTwin Solar 3.5 | B191: SlimFix RenoTwin Solar 3.53070 | C191: 30 | D191: 70 | E191: 8x255
A192: SlimFix RenoTwin Solar 4.0 | B192: SlimFix RenoTwin Solar 4.0022 | C192: 0 | D192: 22 | E192: 8x195
A193: SlimFix RenoTwin Solar 4.0 | B193: SlimFix RenoTwin Solar 4.0040 | C193: 0 | D193: 40 | E193: 8x225
A194: SlimFix RenoTwin Solar 4.0 | B194: SlimFix RenoTwin Solar 4.0050 | C194: 0 | D194: 50 | E194: 8x225
A195: SlimFix RenoTwin Solar 4.0 | B195: SlimFix RenoTwin Solar 4.0060 | C195: 0 | D195: 60 | E195: 8x235
A196: SlimFix RenoTwin Solar 4.0 | B196: SlimFix RenoTwin Solar 4.0070 | C196: 0 | D196: 70 | E196: 8x255
A197: SlimFix RenoTwin Solar 4.0 | B197: SlimFix RenoTwin Solar 4.02022 | C197: 20 | D197: 22 | E197: 8x225
A198: SlimFix RenoTwin Solar 4.0 | B198: SlimFix RenoTwin Solar 4.02040 | C198: 20 | D198: 40 | E198: 8x235
A199: SlimFix RenoTwin Solar 4.0 | B199: SlimFix RenoTwin Solar 4.02050 | C199: 20 | D199: 50 | E199: 8x255
A200: SlimFix RenoTwin Solar 4.0 | B200: SlimFix RenoTwin Solar 4.02060 | C200: 20 | D200: 60 | E200: 8x255
A201: SlimFix RenoTwin Solar 4.0 | B201: SlimFix RenoTwin Solar 4.02070 | C201: 20 | D201: 70 | E201: 8x275
A202: SlimFix RenoTwin Solar 4.0 | B202: SlimFix RenoTwin Solar 4.03022 | C202: 30 | D202: 22 | E202: 8x225
A203: SlimFix RenoTwin Solar 4.0 | B203: SlimFix RenoTwin Solar 4.03040 | C203: 30 | D203: 40 | E203: 8x255
A204: SlimFix RenoTwin Solar 4.0 | B204: SlimFix RenoTwin Solar 4.03050 | C204: 30 | D204: 50 | E204: 8x255
A205: SlimFix RenoTwin Solar 4.0 | B205: SlimFix RenoTwin Solar 4.03060 | C205: 30 | D205: 60 | E205: 8x275
A206: SlimFix RenoTwin Solar 4.0 | B206: SlimFix RenoTwin Solar 4.03070 | C206: 30 | D206: 70 | E206: 8x275
A207: SlimFix RenoTwin Solar 4.5 | B207: SlimFix RenoTwin Solar 4.5022 | C207: 0 | D207: 22 | E207: 8x225
A208: SlimFix RenoTwin Solar 4.5 | B208: SlimFix RenoTwin Solar 4.5040 | C208: 0 | D208: 40 | E208: 8x225
A209: SlimFix RenoTwin Solar 4.5 | B209: SlimFix RenoTwin Solar 4.5050 | C209: 0 | D209: 50 | E209: 8x235
A210: SlimFix RenoTwin Solar 4.5 | B210: SlimFix RenoTwin Solar 4.5060 | C210: 0 | D210: 60 | E210: 8x255
A211: SlimFix RenoTwin Solar 4.5 | B211: SlimFix RenoTwin Solar 4.5070 | C211: 0 | D211: 70 | E211: 8x255
... 115 more rows
